{"text_format":"3","workbook":"xlsx","n_sheets":6,"sheets":["Bảng điều khiển","Doanh số","Thu nhập","Chi phí","Thuế","Danh mục"],"not_rendered":{"images":1,"defined_names":34},"read":"whole","date_system":"1900"}

{"sheet":"Bảng điều khiển","index":0,"n_rows":19,"n_cols":8,"rows_kept":19,"merged":[[0,2,0,4],[0,6,3,7],[4,1,4,7]]}
[null,"Báo cáo lợi nhuận và tổn thất","Cho [Tháng hoặc Năm] kết thúc [Ngày-Tháng-Năm]"]
[null,"Tên công ty","Đã đề cập trong 000"]
[null,"Lãi gộp hiện tại  [L/J]",{"$f":"IFERROR(IF(Tổng_lợi_nhuận_ròng=0,\"-\",Tổng_lợi_nhuận_ròng/Tổng_doanh_thu_bán_hàng),\"-\")","v":"-"}]
[null,"Tỷ suất lợi nhuận trên doanh thu hiện tại  [T/J]",{"$f":"IFERROR(IF(Lợi_nhuận_ròng=0,\"-\",Lợi_nhuận_ròng/Tổng_doanh_thu_bán_hàng),\"-\")","v":"-"}]
[null,"Không sửa đổi các danh mục trong trang tính này, nếu không các công thức có thể hỏng. Sử dụng trang tính Danh mục để thêm các danh mục, rồi cập nhật các trang tính tương ứng có mục nhập. Trang tính này sẽ cập nhật tự động."]
[null,"Tóm tắt","Tổng kỳ trước","Tổng ngân sách","Tổng kỳ\nhiện tại","Tổng kỳ hiện tại theo % doanh số","Tổng % thay đổi từ kỳ trước","Tổng % thay đổi từ ngân sách"]
[null,"Tổng doanh thu bán hàng  [J]",{"$f":"SUMIFS(Doanh_thu_bán_hàng_1[Kỳ trước],Doanh_thu_bán_hàng_1[Loại doanh thu],\"Doanh thu bán hàng\")","v":0},{"$f":"SUMIFS(Doanh_thu_bán_hàng_1[Ngân sách],Doanh_thu_bán_hàng_1[Loại doanh thu],\"Doanh thu bán hàng\")","v":0},{"$f":"SUMIFS(Doanh_thu_bán_hàng_1[Kỳ hiện tại],Doanh_thu_bán_hàng_1[Loại doanh thu],\"Doanh thu bán hàng\")","v":0},{"$f":"SUMIFS(Doanh_thu_bán_hàng_1[Kỳ hiện tại theo % doanh số],Doanh_thu_bán_hàng_1[Loại doanh thu],\"Doanh thu bán hàng\")","v":{"v":0,"d":"0.00%"}},{"$f":"SUMIFS(Doanh_thu_bán_hàng_1[% Thay đổi từ kỳ trước],Doanh_thu_bán_hàng_1[Loại doanh thu],\"Doanh thu bán hàng\")","v":{"v":0,"d":"0.00%"}},{"$f":"SUMIFS(Doanh_thu_bán_hàng_1[% Thay đổi từ ngân sách],Doanh_thu_bán_hàng_1[Loại doanh thu],\"Doanh thu bán hàng\")","v":{"v":0,"d":"0.00%"}}]
[null,"Tổng giá vốn hàng bán  [K]",{"$f":"SUMIFS(Doanh_thu_bán_hàng_1[Kỳ trước],Doanh_thu_bán_hàng_1[Loại doanh thu],\"Giá vốn hàng bán\")","v":0},{"$f":"SUMIFS(Doanh_thu_bán_hàng_1[Ngân sách],Doanh_thu_bán_hàng_1[Loại doanh thu],\"Giá vốn hàng bán\")","v":0},{"$f":"SUMIFS(Doanh_thu_bán_hàng_1[Kỳ hiện tại],Doanh_thu_bán_hàng_1[Loại doanh thu],\"Giá vốn hàng bán\")","v":0},{"$f":"SUMIFS(Doanh_thu_bán_hàng_1[Kỳ hiện tại theo % doanh số],Doanh_thu_bán_hàng_1[Loại doanh thu],\"Giá vốn hàng bán\")","v":{"v":0,"d":"0.00%"}},{"$f":"SUMIFS(Doanh_thu_bán_hàng_1[% Thay đổi từ kỳ trước],Doanh_thu_bán_hàng_1[Loại doanh thu],\"Giá vốn hàng bán\")","v":{"v":0,"d":"0.00%"}},{"$f":"SUMIFS(Doanh_thu_bán_hàng_1[% Thay đổi từ ngân sách],Doanh_thu_bán_hàng_1[Loại doanh thu],\"Giá vốn hàng bán\")","v":{"v":0,"d":"0.00%"}}]
[null,"Tổng chi phí bán hàng và tiếp thị  [M]",{"$f":"SUMIFS(Chi_phí_hoạt_động[Kỳ trước],Chi_phí_hoạt_động[Loại chi phí],\"Bán hàng và tiếp thị\")","v":0},{"$f":"SUMIFS(Chi_phí_hoạt_động[Ngân sách],Chi_phí_hoạt_động[Loại chi phí],\"Bán hàng và tiếp thị\")","v":0},{"$f":"SUMIFS(Chi_phí_hoạt_động[Kỳ hiện tại],Chi_phí_hoạt_động[Loại chi phí],\"Bán hàng và tiếp thị\")","v":0},{"$f":"SUMIFS(Chi_phí_hoạt_động[Kỳ hiện tại theo % doanh số],Chi_phí_hoạt_động[Loại chi phí],\"Bán hàng và tiếp thị\")","v":{"v":0,"d":"0.00%"}},{"$f":"SUMIFS(Chi_phí_hoạt_động[% Thay đổi từ kỳ trước],Chi_phí_hoạt_động[Loại chi phí],\"Bán hàng và tiếp thị\")","v":{"v":0,"d":"0.00%"}},{"$f":"SUMIFS(Chi_phí_hoạt_động[% Thay đổi từ ngân sách],Chi_phí_hoạt_động[Loại chi phí],\"Bán hàng và tiếp thị\")","v":{"v":0,"d":"0.00%"}}]
[null,"Tổng chi phí nghiên cứu và phát triển  [N]",{"$f":"SUMIFS(Chi_phí_hoạt_động[Kỳ trước],Chi_phí_hoạt_động[Loại chi phí],\"Nghiên cứu và phát triển\")","v":0},{"$f":"SUMIFS(Chi_phí_hoạt_động[Ngân sách],Chi_phí_hoạt_động[Loại chi phí],\"Nghiên cứu và phát triển\")","v":0},{"$f":"SUMIFS(Chi_phí_hoạt_động[Kỳ hiện tại],Chi_phí_hoạt_động[Loại chi phí],\"Nghiên cứu và phát triển\")","v":0},{"$f":"SUMIFS(Chi_phí_hoạt_động[Kỳ hiện tại theo % doanh số],Chi_phí_hoạt_động[Loại chi phí],\"Nghiên cứu và phát triển\")","v":{"v":0,"d":"0.00%"}},{"$f":"SUMIFS(Chi_phí_hoạt_động[% Thay đổi từ kỳ trước],Chi_phí_hoạt_động[Loại chi phí],\"Nghiên cứu và phát triển\")","v":{"v":0,"d":"0.00%"}},{"$f":"SUMIFS(Chi_phí_hoạt_động[% Thay đổi từ ngân sách],Chi_phí_hoạt_động[Loại chi phí],\"Nghiên cứu và phát triển\")","v":{"v":0,"d":"0.00%"}}]
[null,"Tổng chi phí quản lý doanh nghiệp  [O]",{"$f":"SUMIFS(Chi_phí_hoạt_động[Kỳ trước],Chi_phí_hoạt_động[Loại chi phí],\"Quản lý doanh nghiệp\")","v":0},{"$f":"SUMIFS(Chi_phí_hoạt_động[Ngân sách],Chi_phí_hoạt_động[Loại chi phí],\"Quản lý doanh nghiệp\")","v":0},{"$f":"SUMIFS(Chi_phí_hoạt_động[Kỳ hiện tại],Chi_phí_hoạt_động[Loại chi phí],\"Quản lý doanh nghiệp\")","v":0},{"$f":"SUMIFS(Chi_phí_hoạt_động[Kỳ hiện tại theo % doanh số],Chi_phí_hoạt_động[Loại chi phí],\"Quản lý doanh nghiệp\")","v":{"v":0,"d":"0.00%"}},{"$f":"SUMIFS(Chi_phí_hoạt_động[% Thay đổi từ kỳ trước],Chi_phí_hoạt_động[Loại chi phí],\"Quản lý doanh nghiệp\")","v":{"v":0,"d":"0.00%"}},{"$f":"SUMIFS(Chi_phí_hoạt_động[% Thay đổi từ ngân sách],Chi_phí_hoạt_động[Loại chi phí],\"Quản lý doanh nghiệp\")","v":{"v":0,"d":"0.00%"}}]
[null,"Tổng chi phí hoạt động khác [P]",{"$f":"Chi_phí_hoạt_động[[#Totals],[Kỳ trước]]-SUM(C9:C11)","v":0},{"$f":"Chi_phí_hoạt_động[[#Totals],[Ngân sách]]-SUM(D9:D11)","v":0},{"$f":"Chi_phí_hoạt_động[[#Totals],[Kỳ hiện tại]]-SUM(E9:E11)","v":0},{"$f":"Chi_phí_hoạt_động[[#Totals],[Kỳ hiện tại theo % doanh số]]-SUM(F9:F11)","v":{"v":0,"d":"0.00%"}},{"$f":"Chi_phí_hoạt_động[[#Totals],[% Thay đổi từ kỳ trước]]-SUM(G9:G11)","v":{"v":0,"d":"0.00%"}},{"$f":"Chi_phí_hoạt_động[[#Totals],[% Thay đổi từ ngân sách]]-SUM(H9:H11)","v":{"v":0,"d":"0.00%"}}]
[null,"Thu nhập khác  [S]",{"$f":"Thu_nhập[[#Totals],[Kỳ trước]]","v":0},{"$f":"Thu_nhập[[#Totals],[Ngân sách]]","v":0},{"$f":"Thu_nhập[[#Totals],[Kỳ hiện tại]]","v":0},{"$f":"Thu_nhập[[#Totals],[Kỳ hiện tại theo % doanh số]]","v":{"v":0,"d":"0.00%"}},{"$f":"Thu_nhập[[#Totals],[% Thay đổi từ kỳ trước]]","v":{"v":0,"d":"0.00%"}},{"$f":"Thu_nhập[[#Totals],[% Thay đổi từ ngân sách]]","v":{"v":0,"d":"0.00%"}}]
[null,"Tổng thuế  [T]",{"$f":"Thuế[[#Totals],[Kỳ trước]]","v":0},{"$f":"Thuế[[#Totals],[Ngân sách]]","v":0},{"$f":"Thuế[[#Totals],[Kỳ hiện tại]]","v":0},{"$f":"Thuế[[#Totals],[Kỳ hiện tại theo % doanh số]]","v":{"v":0,"d":"0.00%"}},{"$f":"Thuế[[#Totals],[% Thay đổi từ kỳ trước]]","v":{"v":0,"d":"0.00%"}},{"$f":"Thuế[[#Totals],[% Thay đổi từ ngân sách]]","v":{"v":0,"d":"0.00%"}}]
[]
[null,"Lợi nhuận gộp  [L=J-K]",{"$f":"IFERROR(C7-C8,\"-\")","v":0},{"$f":"IFERROR(D7-D8,\"-\")","v":0},{"$f":"IFERROR(Tổng_doanh_thu_bán_hàng-Tổng_giá_vốn_hàng_bán,\"-\")","v":0},{"$f":"IFERROR(IF(Tổng_doanh_thu_bán_hàng=0,\"0,00%\",Tổng_lợi_nhuận_ròng/Tổng_doanh_thu_bán_hàng),\"-\")","v":"0,00%"},{"$f":"IFERROR(IF(C16=Tổng_lợi_nhuận_ròng,0,IF(Tổng_lợi_nhuận_ròng>C16,ABS((Tổng_lợi_nhuận_ròng/C16)-1),IF(AND(Tổng_lợi_nhuận_ròng<C16,C16<0),-((Tổng_lợi_nhuận_ròng/C16)-1),(Tổng_lợi_nhuận_ròng/C16)-1))),\"-\")","v":{"v":0,"d":"0.00%"}},{"$f":"IFERROR(IF(D16=Tổng_lợi_nhuận_ròng,0,IF(Tổng_lợi_nhuận_ròng>D16,ABS((Tổng_lợi_nhuận_ròng/D16)-1),IF(AND(Tổng_lợi_nhuận_ròng<D16,D16<0),-((Tổng_lợi_nhuận_ròng/D16)-1),(Tổng_lợi_nhuận_ròng/D16)-1))),\"-\")","v":{"v":0,"d":"0.00%"}}]
[null,"Tổng chi phí hoạt động  [Q=M+N+O+P]",{"$f":"IFERROR(C9+C10+C11+C12,\"-\")","v":0},{"$f":"IFERROR(D9+D10+D11+D12,\"-\")","v":0},{"$f":"IFERROR(Tổng_chi_phí_bán_hàng_và_tiếp_thị+Tổng_chi_phí_nghiên_cứu_và_phát_triển+Tổng_chi_phí_quản_lý_doanh_nghiệp+Tổng_chi_phí_khác,\"-\")","v":0},{"$f":"IFERROR(IF(Tổng_doanh_thu_bán_hàng=0,\"0,00%\",Tổng_chi_phí_hoạt_động/Tổng_doanh_thu_bán_hàng),\"-\")","v":"0,00%"},{"$f":"IFERROR(IF(C17=Tổng_chi_phí_hoạt_động,0,IF(Tổng_chi_phí_hoạt_động>C17,ABS((Tổng_chi_phí_hoạt_động/C17)-1),IF(AND(Tổng_chi_phí_hoạt_động<C17,C17<0),-((Tổng_chi_phí_hoạt_động/C17)-1),(Tổng_chi_phí_hoạt_động/C17)-1))),\"-\")","v":{"v":0,"d":"0.00%"}},{"$f":"IFERROR(IF(D17=Tổng_chi_phí_hoạt_động,0,IF(Tổng_chi_phí_hoạt_động>D17,ABS((Tổng_chi_phí_hoạt_động/D17)-1),IF(AND(Tổng_chi_phí_hoạt_động<D17,D17<0),-((Tổng_chi_phí_hoạt_động/D17)-1),(Tổng_chi_phí_hoạt_động/D17)-1))),\"-\")","v":{"v":0,"d":"0.00%"}}]
[null,"Thu nhập từ vận hành  [R=L-Q]",{"$f":"IFERROR(C16-C17,\"-\")","v":0},{"$f":"IFERROR(D16-D17,\"-\")","v":0},{"$f":"IFERROR(Tổng_lợi_nhuận_ròng-Tổng_chi_phí_hoạt_động,\"-\")","v":0},{"$f":"IFERROR(IF(Tổng_doanh_thu_bán_hàng=0,\"0,00%\",Tổng_thu_nhập_hoạt_động/Tổng_doanh_thu_bán_hàng),\"-\")","v":"0,00%"},{"$f":"IFERROR(IF(C18=Tổng_thu_nhập_hoạt_động,0,IF(Tổng_thu_nhập_hoạt_động>C18,ABS((Tổng_thu_nhập_hoạt_động/C18)-1),IF(AND(Tổng_thu_nhập_hoạt_động<C18,C18<0),-((Tổng_thu_nhập_hoạt_động/C18)-1),(Tổng_thu_nhập_hoạt_động/C18)-1))),\"-\")","v":{"v":0,"d":"0.00%"}},{"$f":"IFERROR(IF(D18=Tổng_thu_nhập_hoạt_động,0,IF(Tổng_thu_nhập_hoạt_động>D18,ABS((Tổng_thu_nhập_hoạt_động/D18)-1),IF(AND(Tổng_thu_nhập_hoạt_động<D18,D18<0),-((Tổng_thu_nhập_hoạt_động/D18)-1),(Tổng_thu_nhập_hoạt_động/D18)-1))),\"-\")","v":{"v":0,"d":"0.00%"}}]
[null,"Lợi nhuận  [U=R+S-T]",{"$f":"IFERROR(C18+C13-C14,\"-\")","v":0},{"$f":"IFERROR(D18+D13-D14,\"-\")","v":0},{"$f":"Tổng_thu_nhập_hoạt_động+Tổng_thu_nhập_khác-Tổng_thuế","v":0},{"$f":"IFERROR(IF(Tổng_doanh_thu_bán_hàng=0,\"0,00%\",Lợi_nhuận_ròng/Tổng_doanh_thu_bán_hàng),\"-\")","v":"0,00%"},{"$f":"IFERROR(IF(C19=Lợi_nhuận_ròng,0,IF(Lợi_nhuận_ròng>C19,ABS((Lợi_nhuận_ròng/C19)-1),IF(AND(Lợi_nhuận_ròng<C19,C19<0),-((Lợi_nhuận_ròng/C19)-1),(Lợi_nhuận_ròng/C19)-1))),\"-\")","v":{"v":0,"d":"0.00%"}},{"$f":"IFERROR(IF(D19=Lợi_nhuận_ròng,0,IF(Lợi_nhuận_ròng>D19,ABS((Lợi_nhuận_ròng/D19)-1),IF(AND(Lợi_nhuận_ròng<D19,D19<0),-((Lợi_nhuận_ròng/D19)-1),(Lợi_nhuận_ròng/D19)-1))),\"-\")","v":{"v":0,"d":"0.00%"}}]

{"sheet":"Doanh số","index":1,"n_rows":13,"n_cols":9,"rows_kept":13,"merged":[[0,7,2,8]]}
[null,{"$f":"Tiêu_đề_sổ_làm_việc","v":"Báo cáo lợi nhuận và tổn thất"}]
[null,{"$f":"Tên_công_ty","v":"Tên công ty"},"Đã đề cập trong 000"]
[null,"Doanh thu bán hàng",{"$f":"IFERROR(Doanh_thu_bán_hàng,\"-\")","v":0}]
[null,"Loại doanh thu","Mô tả","Kỳ trước","Ngân sách","Kỳ hiện tại","Kỳ hiện tại theo % doanh số","% Thay đổi từ kỳ trước","% Thay đổi từ ngân sách"]
[null,"Doanh thu bán hàng","Sản phẩm/Dịch vụ 1",{"$nulls":3},{"$f":"IFERROR(IF(Doanh_thu_bán_hàng_1[[#Totals],[Kỳ hiện tại]]=0,\"-\",Doanh_thu_bán_hàng_1[Kỳ hiện tại]/Doanh_thu_bán_hàng),\"-\")","v":"-"},{"$f":"IFERROR(IF(Doanh_thu_bán_hàng_1[[#This Row],[Kỳ trước]]=Doanh_thu_bán_hàng_1[[#This Row],[Kỳ hiện tại]],0,IF(Doanh_thu_bán_hàng_1[[#This Row],[Kỳ hiện tại]]>Doanh_thu_bán_hàng_1[[#This Row],[Kỳ trước]],ABS((Doanh_thu_bán_hàng_1[[#This Row],[Kỳ hiện tại]]/Doanh_thu_bán_hàng_1[[#This Row],[Kỳ trước]])-1),IF(AND(Doanh_thu_bán_hàng_1[[#This Row],[Kỳ hiện tại]]<Doanh_thu_bán_hàng_1[[#This Row],[Kỳ trước]],Doanh_thu_bán_hàng_1[[#This Row],[Kỳ trước]]<0),-((Doanh_thu_bán_hàng_1[[#This Row],[Kỳ hiện tại]]/Doanh_thu_bán_hàng_1[[#This Row],[Kỳ trước]])-1),(Doanh_thu_bán_hàng_1[[#This Row],[Kỳ hiện tại]]/Doanh_thu_bán_hàng_1[[#This Row],[Kỳ trước]])-1))),\"-\")","v":{"v":0,"d":"0.00%"}},{"$f":"IFERROR(IF(Doanh_thu_bán_hàng_1[[#This Row],[Ngân sách]]=Doanh_thu_bán_hàng_1[[#This Row],[Kỳ hiện tại]],0,IF(Doanh_thu_bán_hàng_1[[#This Row],[Kỳ hiện tại]]>Doanh_thu_bán_hàng_1[[#This Row],[Ngân sách]],ABS((Doanh_thu_bán_hàng_1[[#This Row],[Kỳ hiện tại]]/Doanh_thu_bán_hàng_1[[#This Row],[Ngân sách]])-1),IF(AND(Doanh_thu_bán_hàng_1[[#This Row],[Kỳ hiện tại]]<Doanh_thu_bán_hàng_1[[#This Row],[Ngân sách]],Doanh_thu_bán_hàng_1[[#This Row],[Ngân sách]]<0),-((Doanh_thu_bán_hàng_1[[#This Row],[Kỳ hiện tại]]/Doanh_thu_bán_hàng_1[[#This Row],[Ngân sách]])-1),(Doanh_thu_bán_hàng_1[[#This Row],[Kỳ hiện tại]]/Doanh_thu_bán_hàng_1[[#This Row],[Ngân sách]])-1))),\"-\")","v":{"v":0,"d":"0.00%"}}]
[null,"Doanh thu bán hàng","Sản phẩm/Dịch vụ 2",{"$nulls":3},{"$f":"IFERROR(IF(Doanh_thu_bán_hàng_1[[#Totals],[Kỳ hiện tại]]=0,\"-\",Doanh_thu_bán_hàng_1[Kỳ hiện tại]/Doanh_thu_bán_hàng),\"-\")","v":"-"},{"$f":"IFERROR(IF(Doanh_thu_bán_hàng_1[[#This Row],[Kỳ trước]]=Doanh_thu_bán_hàng_1[[#This Row],[Kỳ hiện tại]],0,IF(Doanh_thu_bán_hàng_1[[#This Row],[Kỳ hiện tại]]>Doanh_thu_bán_hàng_1[[#This Row],[Kỳ trước]],ABS((Doanh_thu_bán_hàng_1[[#This Row],[Kỳ hiện tại]]/Doanh_thu_bán_hàng_1[[#This Row],[Kỳ trước]])-1),IF(AND(Doanh_thu_bán_hàng_1[[#This Row],[Kỳ hiện tại]]<Doanh_thu_bán_hàng_1[[#This Row],[Kỳ trước]],Doanh_thu_bán_hàng_1[[#This Row],[Kỳ trước]]<0),-((Doanh_thu_bán_hàng_1[[#This Row],[Kỳ hiện tại]]/Doanh_thu_bán_hàng_1[[#This Row],[Kỳ trước]])-1),(Doanh_thu_bán_hàng_1[[#This Row],[Kỳ hiện tại]]/Doanh_thu_bán_hàng_1[[#This Row],[Kỳ trước]])-1))),\"-\")","v":{"v":0,"d":"0.00%"}},{"$f":"IFERROR(IF(Doanh_thu_bán_hàng_1[[#This Row],[Ngân sách]]=Doanh_thu_bán_hàng_1[[#This Row],[Kỳ hiện tại]],0,IF(Doanh_thu_bán_hàng_1[[#This Row],[Kỳ hiện tại]]>Doanh_thu_bán_hàng_1[[#This Row],[Ngân sách]],ABS((Doanh_thu_bán_hàng_1[[#This Row],[Kỳ hiện tại]]/Doanh_thu_bán_hàng_1[[#This Row],[Ngân sách]])-1),IF(AND(Doanh_thu_bán_hàng_1[[#This Row],[Kỳ hiện tại]]<Doanh_thu_bán_hàng_1[[#This Row],[Ngân sách]],Doanh_thu_bán_hàng_1[[#This Row],[Ngân sách]]<0),-((Doanh_thu_bán_hàng_1[[#This Row],[Kỳ hiện tại]]/Doanh_thu_bán_hàng_1[[#This Row],[Ngân sách]])-1),(Doanh_thu_bán_hàng_1[[#This Row],[Kỳ hiện tại]]/Doanh_thu_bán_hàng_1[[#This Row],[Ngân sách]])-1))),\"-\")","v":{"v":0,"d":"0.00%"}}]
[null,"Doanh thu bán hàng","Sản phẩm/Dịch vụ 3",{"$nulls":3},{"$f":"IFERROR(IF(Doanh_thu_bán_hàng_1[[#Totals],[Kỳ hiện tại]]=0,\"-\",Doanh_thu_bán_hàng_1[Kỳ hiện tại]/Doanh_thu_bán_hàng),\"-\")","v":"-"},{"$f":"IFERROR(IF(Doanh_thu_bán_hàng_1[[#This Row],[Kỳ trước]]=Doanh_thu_bán_hàng_1[[#This Row],[Kỳ hiện tại]],0,IF(Doanh_thu_bán_hàng_1[[#This Row],[Kỳ hiện tại]]>Doanh_thu_bán_hàng_1[[#This Row],[Kỳ trước]],ABS((Doanh_thu_bán_hàng_1[[#This Row],[Kỳ hiện tại]]/Doanh_thu_bán_hàng_1[[#This Row],[Kỳ trước]])-1),IF(AND(Doanh_thu_bán_hàng_1[[#This Row],[Kỳ hiện tại]]<Doanh_thu_bán_hàng_1[[#This Row],[Kỳ trước]],Doanh_thu_bán_hàng_1[[#This Row],[Kỳ trước]]<0),-((Doanh_thu_bán_hàng_1[[#This Row],[Kỳ hiện tại]]/Doanh_thu_bán_hàng_1[[#This Row],[Kỳ trước]])-1),(Doanh_thu_bán_hàng_1[[#This Row],[Kỳ hiện tại]]/Doanh_thu_bán_hàng_1[[#This Row],[Kỳ trước]])-1))),\"-\")","v":{"v":0,"d":"0.00%"}},{"$f":"IFERROR(IF(Doanh_thu_bán_hàng_1[[#This Row],[Ngân sách]]=Doanh_thu_bán_hàng_1[[#This Row],[Kỳ hiện tại]],0,IF(Doanh_thu_bán_hàng_1[[#This Row],[Kỳ hiện tại]]>Doanh_thu_bán_hàng_1[[#This Row],[Ngân sách]],ABS((Doanh_thu_bán_hàng_1[[#This Row],[Kỳ hiện tại]]/Doanh_thu_bán_hàng_1[[#This Row],[Ngân sách]])-1),IF(AND(Doanh_thu_bán_hàng_1[[#This Row],[Kỳ hiện tại]]<Doanh_thu_bán_hàng_1[[#This Row],[Ngân sách]],Doanh_thu_bán_hàng_1[[#This Row],[Ngân sách]]<0),-((Doanh_thu_bán_hàng_1[[#This Row],[Kỳ hiện tại]]/Doanh_thu_bán_hàng_1[[#This Row],[Ngân sách]])-1),(Doanh_thu_bán_hàng_1[[#This Row],[Kỳ hiện tại]]/Doanh_thu_bán_hàng_1[[#This Row],[Ngân sách]])-1))),\"-\")","v":{"v":0,"d":"0.00%"}}]
[null,"Doanh thu bán hàng","Sản phẩm/Dịch vụ 4",{"$nulls":3},{"$f":"IFERROR(IF(Doanh_thu_bán_hàng_1[[#Totals],[Kỳ hiện tại]]=0,\"-\",Doanh_thu_bán_hàng_1[Kỳ hiện tại]/Doanh_thu_bán_hàng),\"-\")","v":"-"},{"$f":"IFERROR(IF(Doanh_thu_bán_hàng_1[[#This Row],[Kỳ trước]]=Doanh_thu_bán_hàng_1[[#This Row],[Kỳ hiện tại]],0,IF(Doanh_thu_bán_hàng_1[[#This Row],[Kỳ hiện tại]]>Doanh_thu_bán_hàng_1[[#This Row],[Kỳ trước]],ABS((Doanh_thu_bán_hàng_1[[#This Row],[Kỳ hiện tại]]/Doanh_thu_bán_hàng_1[[#This Row],[Kỳ trước]])-1),IF(AND(Doanh_thu_bán_hàng_1[[#This Row],[Kỳ hiện tại]]<Doanh_thu_bán_hàng_1[[#This Row],[Kỳ trước]],Doanh_thu_bán_hàng_1[[#This Row],[Kỳ trước]]<0),-((Doanh_thu_bán_hàng_1[[#This Row],[Kỳ hiện tại]]/Doanh_thu_bán_hàng_1[[#This Row],[Kỳ trước]])-1),(Doanh_thu_bán_hàng_1[[#This Row],[Kỳ hiện tại]]/Doanh_thu_bán_hàng_1[[#This Row],[Kỳ trước]])-1))),\"-\")","v":{"v":0,"d":"0.00%"}},{"$f":"IFERROR(IF(Doanh_thu_bán_hàng_1[[#This Row],[Ngân sách]]=Doanh_thu_bán_hàng_1[[#This Row],[Kỳ hiện tại]],0,IF(Doanh_thu_bán_hàng_1[[#This Row],[Kỳ hiện tại]]>Doanh_thu_bán_hàng_1[[#This Row],[Ngân sách]],ABS((Doanh_thu_bán_hàng_1[[#This Row],[Kỳ hiện tại]]/Doanh_thu_bán_hàng_1[[#This Row],[Ngân sách]])-1),IF(AND(Doanh_thu_bán_hàng_1[[#This Row],[Kỳ hiện tại]]<Doanh_thu_bán_hàng_1[[#This Row],[Ngân sách]],Doanh_thu_bán_hàng_1[[#This Row],[Ngân sách]]<0),-((Doanh_thu_bán_hàng_1[[#This Row],[Kỳ hiện tại]]/Doanh_thu_bán_hàng_1[[#This Row],[Ngân sách]])-1),(Doanh_thu_bán_hàng_1[[#This Row],[Kỳ hiện tại]]/Doanh_thu_bán_hàng_1[[#This Row],[Ngân sách]])-1))),\"-\")","v":{"v":0,"d":"0.00%"}}]
[null,"Giá vốn hàng bán","Sản phẩm/Dịch vụ 1",{"$nulls":3},{"$f":"IFERROR(IF(Doanh_thu_bán_hàng_1[[#Totals],[Kỳ hiện tại]]=0,\"-\",Doanh_thu_bán_hàng_1[Kỳ hiện tại]/Doanh_thu_bán_hàng),\"-\")","v":"-"},{"$f":"IFERROR(IF(Doanh_thu_bán_hàng_1[[#This Row],[Kỳ trước]]=Doanh_thu_bán_hàng_1[[#This Row],[Kỳ hiện tại]],0,IF(Doanh_thu_bán_hàng_1[[#This Row],[Kỳ hiện tại]]>Doanh_thu_bán_hàng_1[[#This Row],[Kỳ trước]],ABS((Doanh_thu_bán_hàng_1[[#This Row],[Kỳ hiện tại]]/Doanh_thu_bán_hàng_1[[#This Row],[Kỳ trước]])-1),IF(AND(Doanh_thu_bán_hàng_1[[#This Row],[Kỳ hiện tại]]<Doanh_thu_bán_hàng_1[[#This Row],[Kỳ trước]],Doanh_thu_bán_hàng_1[[#This Row],[Kỳ trước]]<0),-((Doanh_thu_bán_hàng_1[[#This Row],[Kỳ hiện tại]]/Doanh_thu_bán_hàng_1[[#This Row],[Kỳ trước]])-1),(Doanh_thu_bán_hàng_1[[#This Row],[Kỳ hiện tại]]/Doanh_thu_bán_hàng_1[[#This Row],[Kỳ trước]])-1))),\"-\")","v":{"v":0,"d":"0.00%"}},{"$f":"IFERROR(IF(Doanh_thu_bán_hàng_1[[#This Row],[Ngân sách]]=Doanh_thu_bán_hàng_1[[#This Row],[Kỳ hiện tại]],0,IF(Doanh_thu_bán_hàng_1[[#This Row],[Kỳ hiện tại]]>Doanh_thu_bán_hàng_1[[#This Row],[Ngân sách]],ABS((Doanh_thu_bán_hàng_1[[#This Row],[Kỳ hiện tại]]/Doanh_thu_bán_hàng_1[[#This Row],[Ngân sách]])-1),IF(AND(Doanh_thu_bán_hàng_1[[#This Row],[Kỳ hiện tại]]<Doanh_thu_bán_hàng_1[[#This Row],[Ngân sách]],Doanh_thu_bán_hàng_1[[#This Row],[Ngân sách]]<0),-((Doanh_thu_bán_hàng_1[[#This Row],[Kỳ hiện tại]]/Doanh_thu_bán_hàng_1[[#This Row],[Ngân sách]])-1),(Doanh_thu_bán_hàng_1[[#This Row],[Kỳ hiện tại]]/Doanh_thu_bán_hàng_1[[#This Row],[Ngân sách]])-1))),\"-\")","v":{"v":0,"d":"0.00%"}}]
[null,"Giá vốn hàng bán","Sản phẩm/Dịch vụ 2",{"$nulls":3},{"$f":"IFERROR(IF(Doanh_thu_bán_hàng_1[[#Totals],[Kỳ hiện tại]]=0,\"-\",Doanh_thu_bán_hàng_1[Kỳ hiện tại]/Doanh_thu_bán_hàng),\"-\")","v":"-"},{"$f":"IFERROR(IF(Doanh_thu_bán_hàng_1[[#This Row],[Kỳ trước]]=Doanh_thu_bán_hàng_1[[#This Row],[Kỳ hiện tại]],0,IF(Doanh_thu_bán_hàng_1[[#This Row],[Kỳ hiện tại]]>Doanh_thu_bán_hàng_1[[#This Row],[Kỳ trước]],ABS((Doanh_thu_bán_hàng_1[[#This Row],[Kỳ hiện tại]]/Doanh_thu_bán_hàng_1[[#This Row],[Kỳ trước]])-1),IF(AND(Doanh_thu_bán_hàng_1[[#This Row],[Kỳ hiện tại]]<Doanh_thu_bán_hàng_1[[#This Row],[Kỳ trước]],Doanh_thu_bán_hàng_1[[#This Row],[Kỳ trước]]<0),-((Doanh_thu_bán_hàng_1[[#This Row],[Kỳ hiện tại]]/Doanh_thu_bán_hàng_1[[#This Row],[Kỳ trước]])-1),(Doanh_thu_bán_hàng_1[[#This Row],[Kỳ hiện tại]]/Doanh_thu_bán_hàng_1[[#This Row],[Kỳ trước]])-1))),\"-\")","v":{"v":0,"d":"0.00%"}},{"$f":"IFERROR(IF(Doanh_thu_bán_hàng_1[[#This Row],[Ngân sách]]=Doanh_thu_bán_hàng_1[[#This Row],[Kỳ hiện tại]],0,IF(Doanh_thu_bán_hàng_1[[#This Row],[Kỳ hiện tại]]>Doanh_thu_bán_hàng_1[[#This Row],[Ngân sách]],ABS((Doanh_thu_bán_hàng_1[[#This Row],[Kỳ hiện tại]]/Doanh_thu_bán_hàng_1[[#This Row],[Ngân sách]])-1),IF(AND(Doanh_thu_bán_hàng_1[[#This Row],[Kỳ hiện tại]]<Doanh_thu_bán_hàng_1[[#This Row],[Ngân sách]],Doanh_thu_bán_hàng_1[[#This Row],[Ngân sách]]<0),-((Doanh_thu_bán_hàng_1[[#This Row],[Kỳ hiện tại]]/Doanh_thu_bán_hàng_1[[#This Row],[Ngân sách]])-1),(Doanh_thu_bán_hàng_1[[#This Row],[Kỳ hiện tại]]/Doanh_thu_bán_hàng_1[[#This Row],[Ngân sách]])-1))),\"-\")","v":{"v":0,"d":"0.00%"}}]
[null,"Giá vốn hàng bán","Sản phẩm/Dịch vụ 3",{"$nulls":3},{"$f":"IFERROR(IF(Doanh_thu_bán_hàng_1[[#Totals],[Kỳ hiện tại]]=0,\"-\",Doanh_thu_bán_hàng_1[Kỳ hiện tại]/Doanh_thu_bán_hàng),\"-\")","v":"-"},{"$f":"IFERROR(IF(Doanh_thu_bán_hàng_1[[#This Row],[Kỳ trước]]=Doanh_thu_bán_hàng_1[[#This Row],[Kỳ hiện tại]],0,IF(Doanh_thu_bán_hàng_1[[#This Row],[Kỳ hiện tại]]>Doanh_thu_bán_hàng_1[[#This Row],[Kỳ trước]],ABS((Doanh_thu_bán_hàng_1[[#This Row],[Kỳ hiện tại]]/Doanh_thu_bán_hàng_1[[#This Row],[Kỳ trước]])-1),IF(AND(Doanh_thu_bán_hàng_1[[#This Row],[Kỳ hiện tại]]<Doanh_thu_bán_hàng_1[[#This Row],[Kỳ trước]],Doanh_thu_bán_hàng_1[[#This Row],[Kỳ trước]]<0),-((Doanh_thu_bán_hàng_1[[#This Row],[Kỳ hiện tại]]/Doanh_thu_bán_hàng_1[[#This Row],[Kỳ trước]])-1),(Doanh_thu_bán_hàng_1[[#This Row],[Kỳ hiện tại]]/Doanh_thu_bán_hàng_1[[#This Row],[Kỳ trước]])-1))),\"-\")","v":{"v":0,"d":"0.00%"}},{"$f":"IFERROR(IF(Doanh_thu_bán_hàng_1[[#This Row],[Ngân sách]]=Doanh_thu_bán_hàng_1[[#This Row],[Kỳ hiện tại]],0,IF(Doanh_thu_bán_hàng_1[[#This Row],[Kỳ hiện tại]]>Doanh_thu_bán_hàng_1[[#This Row],[Ngân sách]],ABS((Doanh_thu_bán_hàng_1[[#This Row],[Kỳ hiện tại]]/Doanh_thu_bán_hàng_1[[#This Row],[Ngân sách]])-1),IF(AND(Doanh_thu_bán_hàng_1[[#This Row],[Kỳ hiện tại]]<Doanh_thu_bán_hàng_1[[#This Row],[Ngân sách]],Doanh_thu_bán_hàng_1[[#This Row],[Ngân sách]]<0),-((Doanh_thu_bán_hàng_1[[#This Row],[Kỳ hiện tại]]/Doanh_thu_bán_hàng_1[[#This Row],[Ngân sách]])-1),(Doanh_thu_bán_hàng_1[[#This Row],[Kỳ hiện tại]]/Doanh_thu_bán_hàng_1[[#This Row],[Ngân sách]])-1))),\"-\")","v":{"v":0,"d":"0.00%"}}]
[null,"Giá vốn hàng bán","Sản phẩm/Dịch vụ 4",{"$nulls":3},{"$f":"IFERROR(IF(Doanh_thu_bán_hàng_1[[#Totals],[Kỳ hiện tại]]=0,\"-\",Doanh_thu_bán_hàng_1[Kỳ hiện tại]/Doanh_thu_bán_hàng),\"-\")","v":"-"},{"$f":"IFERROR(IF(Doanh_thu_bán_hàng_1[[#This Row],[Kỳ trước]]=Doanh_thu_bán_hàng_1[[#This Row],[Kỳ hiện tại]],0,IF(Doanh_thu_bán_hàng_1[[#This Row],[Kỳ hiện tại]]>Doanh_thu_bán_hàng_1[[#This Row],[Kỳ trước]],ABS((Doanh_thu_bán_hàng_1[[#This Row],[Kỳ hiện tại]]/Doanh_thu_bán_hàng_1[[#This Row],[Kỳ trước]])-1),IF(AND(Doanh_thu_bán_hàng_1[[#This Row],[Kỳ hiện tại]]<Doanh_thu_bán_hàng_1[[#This Row],[Kỳ trước]],Doanh_thu_bán_hàng_1[[#This Row],[Kỳ trước]]<0),-((Doanh_thu_bán_hàng_1[[#This Row],[Kỳ hiện tại]]/Doanh_thu_bán_hàng_1[[#This Row],[Kỳ trước]])-1),(Doanh_thu_bán_hàng_1[[#This Row],[Kỳ hiện tại]]/Doanh_thu_bán_hàng_1[[#This Row],[Kỳ trước]])-1))),\"-\")","v":{"v":0,"d":"0.00%"}},{"$f":"IFERROR(IF(Doanh_thu_bán_hàng_1[[#This Row],[Ngân sách]]=Doanh_thu_bán_hàng_1[[#This Row],[Kỳ hiện tại]],0,IF(Doanh_thu_bán_hàng_1[[#This Row],[Kỳ hiện tại]]>Doanh_thu_bán_hàng_1[[#This Row],[Ngân sách]],ABS((Doanh_thu_bán_hàng_1[[#This Row],[Kỳ hiện tại]]/Doanh_thu_bán_hàng_1[[#This Row],[Ngân sách]])-1),IF(AND(Doanh_thu_bán_hàng_1[[#This Row],[Kỳ hiện tại]]<Doanh_thu_bán_hàng_1[[#This Row],[Ngân sách]],Doanh_thu_bán_hàng_1[[#This Row],[Ngân sách]]<0),-((Doanh_thu_bán_hàng_1[[#This Row],[Kỳ hiện tại]]/Doanh_thu_bán_hàng_1[[#This Row],[Ngân sách]])-1),(Doanh_thu_bán_hàng_1[[#This Row],[Kỳ hiện tại]]/Doanh_thu_bán_hàng_1[[#This Row],[Ngân sách]])-1))),\"-\")","v":{"v":0,"d":"0.00%"}}]
[null,"Tổng doanh thu bán hàng",null,{"$f":"SUBTOTAL(109,Doanh_thu_bán_hàng_1[Kỳ trước])","v":0},{"$f":"SUBTOTAL(109,Doanh_thu_bán_hàng_1[Ngân sách])","v":0},{"$f":"SUBTOTAL(109,Doanh_thu_bán_hàng_1[Kỳ hiện tại])","v":0},{"$f":"SUBTOTAL(109,Doanh_thu_bán_hàng_1[Kỳ hiện tại theo % doanh số])","v":{"v":0,"d":"0.00%"}},{"$f":"SUBTOTAL(109,Doanh_thu_bán_hàng_1[% Thay đổi từ kỳ trước])","v":{"v":0,"d":"0.00%"}},{"$f":"SUBTOTAL(109,Doanh_thu_bán_hàng_1[% Thay đổi từ ngân sách])","v":{"v":0,"d":"0.00%"}}]

{"sheet":"Thu nhập","index":2,"n_rows":7,"n_cols":9,"rows_kept":7,"merged":[[0,7,2,8]]}
[null,{"$f":"Tiêu_đề_sổ_làm_việc","v":"Báo cáo lợi nhuận và tổn thất"}]
[null,{"$f":"Tên_công_ty","v":"Tên công ty"},"Đã đề cập trong 000"]
[null,"Thu nhập",{"$f":"IFERROR(Thu_nhập[[#Totals],[Kỳ hiện tại]],\"-\")","v":0}]
[null,"Loại thu nhập","Mô tả","Kỳ trước","Ngân sách","Kỳ hiện tại","Kỳ hiện tại theo % doanh số","% Thay đổi từ kỳ trước","% Thay đổi từ ngân sách"]
[null,"Thu nhập","Thu nhập khác",{"$nulls":3},{"$f":"IFERROR(IF(Doanh_thu_bán_hàng=0,\"-\",Thu_nhập[Kỳ hiện tại]/Doanh_thu_bán_hàng),\"-\")","v":"-"},{"$f":"IFERROR(IF(Thu_nhập[[#This Row],[Kỳ trước]]=Thu_nhập[[#This Row],[Kỳ hiện tại]],0,IF(Thu_nhập[[#This Row],[Kỳ hiện tại]]>Thu_nhập[[#This Row],[Kỳ trước]],ABS((Thu_nhập[[#This Row],[Kỳ hiện tại]]/Thu_nhập[[#This Row],[Kỳ trước]])-1),IF(AND(Thu_nhập[[#This Row],[Kỳ hiện tại]]<Thu_nhập[[#This Row],[Kỳ trước]],Thu_nhập[[#This Row],[Kỳ trước]]<0),-((Thu_nhập[[#This Row],[Kỳ hiện tại]]/Thu_nhập[[#This Row],[Kỳ trước]])-1),(Thu_nhập[[#This Row],[Kỳ hiện tại]]/Thu_nhập[[#This Row],[Kỳ trước]])-1))),\"-\")","v":{"v":0,"d":"0.00%"}},{"$f":"IFERROR(IF(Thu_nhập[[#This Row],[Ngân sách]]=Thu_nhập[[#This Row],[Kỳ hiện tại]],0,IF(Thu_nhập[[#This Row],[Kỳ hiện tại]]>Thu_nhập[[#This Row],[Ngân sách]],ABS((Thu_nhập[[#This Row],[Kỳ hiện tại]]/Thu_nhập[[#This Row],[Ngân sách]])-1),IF(AND(Thu_nhập[[#This Row],[Kỳ hiện tại]]<Thu_nhập[[#This Row],[Ngân sách]],Thu_nhập[[#This Row],[Ngân sách]]<0),-((Thu_nhập[[#This Row],[Kỳ hiện tại]]/Thu_nhập[[#This Row],[Ngân sách]])-1),(Thu_nhập[[#This Row],[Kỳ hiện tại]]/Thu_nhập[[#This Row],[Ngân sách]])-1))),\"-\")","v":{"v":0,"d":"0.00%"}}]
[{"$nulls":6},{"$f":"IFERROR(IF(Doanh_thu_bán_hàng=0,\"-\",Thu_nhập[Kỳ hiện tại]/Doanh_thu_bán_hàng),\"-\")","v":"-"},{"$f":"IFERROR(IF(Thu_nhập[[#This Row],[Kỳ trước]]=Thu_nhập[[#This Row],[Kỳ hiện tại]],0,IF(Thu_nhập[[#This Row],[Kỳ hiện tại]]>Thu_nhập[[#This Row],[Kỳ trước]],ABS((Thu_nhập[[#This Row],[Kỳ hiện tại]]/Thu_nhập[[#This Row],[Kỳ trước]])-1),IF(AND(Thu_nhập[[#This Row],[Kỳ hiện tại]]<Thu_nhập[[#This Row],[Kỳ trước]],Thu_nhập[[#This Row],[Kỳ trước]]<0),-((Thu_nhập[[#This Row],[Kỳ hiện tại]]/Thu_nhập[[#This Row],[Kỳ trước]])-1),(Thu_nhập[[#This Row],[Kỳ hiện tại]]/Thu_nhập[[#This Row],[Kỳ trước]])-1))),\"-\")","v":{"v":0,"d":"0.00%"}},{"$f":"IFERROR(IF(Thu_nhập[[#This Row],[Ngân sách]]=Thu_nhập[[#This Row],[Kỳ hiện tại]],0,IF(Thu_nhập[[#This Row],[Kỳ hiện tại]]>Thu_nhập[[#This Row],[Ngân sách]],ABS((Thu_nhập[[#This Row],[Kỳ hiện tại]]/Thu_nhập[[#This Row],[Ngân sách]])-1),IF(AND(Thu_nhập[[#This Row],[Kỳ hiện tại]]<Thu_nhập[[#This Row],[Ngân sách]],Thu_nhập[[#This Row],[Ngân sách]]<0),-((Thu_nhập[[#This Row],[Kỳ hiện tại]]/Thu_nhập[[#This Row],[Ngân sách]])-1),(Thu_nhập[[#This Row],[Kỳ hiện tại]]/Thu_nhập[[#This Row],[Ngân sách]])-1))),\"-\")","v":{"v":0,"d":"0.00%"}}]
[null,"Tổng thu nhập bán hàng",null,{"$f":"SUBTOTAL(109,Thu_nhập[Kỳ trước])","v":0},{"$f":"SUBTOTAL(109,Thu_nhập[Ngân sách])","v":0},{"$f":"SUBTOTAL(109,Thu_nhập[Kỳ hiện tại])","v":0},{"$f":"SUBTOTAL(109,Thu_nhập[Kỳ hiện tại theo % doanh số])","v":{"v":0,"d":"0.00%"}},{"$f":"SUBTOTAL(109,Thu_nhập[% Thay đổi từ kỳ trước])","v":{"v":0,"d":"0.00%"}},{"$f":"SUBTOTAL(109,Thu_nhập[% Thay đổi từ ngân sách])","v":{"v":0,"d":"0.00%"}}]

{"sheet":"Chi phí","index":3,"n_rows":25,"n_cols":9,"rows_kept":25,"merged":[[0,7,2,8]]}
[null,{"$f":"Tiêu_đề_sổ_làm_việc","v":"Báo cáo lợi nhuận và tổn thất"}]
[null,{"$f":"Tên_công_ty","v":"Tên công ty"},"Đã đề cập trong 000"]
[null,"Chi phí hoạt động",{"$f":"IFERROR(Chi_phí_hoạt_động[[#Totals],[Kỳ hiện tại]],\"-\")","v":0}]
[null,"Loại chi phí","Mô tả","Kỳ trước","Ngân sách","Kỳ hiện tại","Kỳ hiện tại theo % doanh số","% Thay đổi từ kỳ trước","% Thay đổi từ ngân sách"]
[null,"Bán hàng và tiếp thị","Quảng cáo",{"$nulls":3},{"$f":"IFERROR(IF(Doanh_thu_bán_hàng=0,\"-\",Chi_phí_hoạt_động[Kỳ hiện tại]/Doanh_thu_bán_hàng),\"-\")","v":"-"},{"$f":"IFERROR(IF(Chi_phí_hoạt_động[[#This Row],[Kỳ trước]]=Chi_phí_hoạt_động[[#This Row],[Kỳ hiện tại]],0,IF(Chi_phí_hoạt_động[[#This Row],[Kỳ hiện tại]]>Chi_phí_hoạt_động[[#This Row],[Kỳ trước]],ABS((Chi_phí_hoạt_động[[#This Row],[Kỳ hiện tại]]/Chi_phí_hoạt_động[[#This Row],[Kỳ trước]])-1),IF(AND(Chi_phí_hoạt_động[[#This Row],[Kỳ hiện tại]]<Chi_phí_hoạt_động[[#This Row],[Kỳ trước]],Chi_phí_hoạt_động[[#This Row],[Kỳ trước]]<0),-((Chi_phí_hoạt_động[[#This Row],[Kỳ hiện tại]]/Chi_phí_hoạt_động[[#This Row],[Kỳ trước]])-1),(Chi_phí_hoạt_động[[#This Row],[Kỳ hiện tại]]/Chi_phí_hoạt_động[[#This Row],[Kỳ trước]])-1))),\"-\")","v":{"v":0,"d":"0.00%"}},{"$f":"IFERROR(IF(Chi_phí_hoạt_động[[#This Row],[Ngân sách]]=Chi_phí_hoạt_động[[#This Row],[Kỳ hiện tại]],0,IF(Chi_phí_hoạt_động[[#This Row],[Kỳ hiện tại]]>Chi_phí_hoạt_động[[#This Row],[Ngân sách]],ABS((Chi_phí_hoạt_động[[#This Row],[Kỳ hiện tại]]/Chi_phí_hoạt_động[[#This Row],[Ngân sách]])-1),IF(AND(Chi_phí_hoạt_động[[#This Row],[Kỳ hiện tại]]<Chi_phí_hoạt_động[[#This Row],[Ngân sách]],Chi_phí_hoạt_động[[#This Row],[Ngân sách]]<0),-((Chi_phí_hoạt_động[[#This Row],[Kỳ hiện tại]]/Chi_phí_hoạt_động[[#This Row],[Ngân sách]])-1),(Chi_phí_hoạt_động[[#This Row],[Kỳ hiện tại]]/Chi_phí_hoạt_động[[#This Row],[Ngân sách]])-1))),\"-\")","v":{"v":0,"d":"0.00%"}}]
[null,"Bán hàng và tiếp thị","Tiếp thị trực tiếp",{"$nulls":3},{"$f":"IFERROR(IF(Doanh_thu_bán_hàng=0,\"-\",Chi_phí_hoạt_động[Kỳ hiện tại]/Doanh_thu_bán_hàng),\"-\")","v":"-"},{"$f":"IFERROR(IF(Chi_phí_hoạt_động[[#This Row],[Kỳ trước]]=Chi_phí_hoạt_động[[#This Row],[Kỳ hiện tại]],0,IF(Chi_phí_hoạt_động[[#This Row],[Kỳ hiện tại]]>Chi_phí_hoạt_động[[#This Row],[Kỳ trước]],ABS((Chi_phí_hoạt_động[[#This Row],[Kỳ hiện tại]]/Chi_phí_hoạt_động[[#This Row],[Kỳ trước]])-1),IF(AND(Chi_phí_hoạt_động[[#This Row],[Kỳ hiện tại]]<Chi_phí_hoạt_động[[#This Row],[Kỳ trước]],Chi_phí_hoạt_động[[#This Row],[Kỳ trước]]<0),-((Chi_phí_hoạt_động[[#This Row],[Kỳ hiện tại]]/Chi_phí_hoạt_động[[#This Row],[Kỳ trước]])-1),(Chi_phí_hoạt_động[[#This Row],[Kỳ hiện tại]]/Chi_phí_hoạt_động[[#This Row],[Kỳ trước]])-1))),\"-\")","v":{"v":0,"d":"0.00%"}},{"$f":"IFERROR(IF(Chi_phí_hoạt_động[[#This Row],[Ngân sách]]=Chi_phí_hoạt_động[[#This Row],[Kỳ hiện tại]],0,IF(Chi_phí_hoạt_động[[#This Row],[Kỳ hiện tại]]>Chi_phí_hoạt_động[[#This Row],[Ngân sách]],ABS((Chi_phí_hoạt_động[[#This Row],[Kỳ hiện tại]]/Chi_phí_hoạt_động[[#This Row],[Ngân sách]])-1),IF(AND(Chi_phí_hoạt_động[[#This Row],[Kỳ hiện tại]]<Chi_phí_hoạt_động[[#This Row],[Ngân sách]],Chi_phí_hoạt_động[[#This Row],[Ngân sách]]<0),-((Chi_phí_hoạt_động[[#This Row],[Kỳ hiện tại]]/Chi_phí_hoạt_động[[#This Row],[Ngân sách]])-1),(Chi_phí_hoạt_động[[#This Row],[Kỳ hiện tại]]/Chi_phí_hoạt_động[[#This Row],[Ngân sách]])-1))),\"-\")","v":{"v":0,"d":"0.00%"}}]
[null,"Bán hàng và tiếp thị","Chi phí khác (ghi rõ)",{"$nulls":3},{"$f":"IFERROR(IF(Doanh_thu_bán_hàng=0,\"-\",Chi_phí_hoạt_động[Kỳ hiện tại]/Doanh_thu_bán_hàng),\"-\")","v":"-"},{"$f":"IFERROR(IF(Chi_phí_hoạt_động[[#This Row],[Kỳ trước]]=Chi_phí_hoạt_động[[#This Row],[Kỳ hiện tại]],0,IF(Chi_phí_hoạt_động[[#This Row],[Kỳ hiện tại]]>Chi_phí_hoạt_động[[#This Row],[Kỳ trước]],ABS((Chi_phí_hoạt_động[[#This Row],[Kỳ hiện tại]]/Chi_phí_hoạt_động[[#This Row],[Kỳ trước]])-1),IF(AND(Chi_phí_hoạt_động[[#This Row],[Kỳ hiện tại]]<Chi_phí_hoạt_động[[#This Row],[Kỳ trước]],Chi_phí_hoạt_động[[#This Row],[Kỳ trước]]<0),-((Chi_phí_hoạt_động[[#This Row],[Kỳ hiện tại]]/Chi_phí_hoạt_động[[#This Row],[Kỳ trước]])-1),(Chi_phí_hoạt_động[[#This Row],[Kỳ hiện tại]]/Chi_phí_hoạt_động[[#This Row],[Kỳ trước]])-1))),\"-\")","v":{"v":0,"d":"0.00%"}},{"$f":"IFERROR(IF(Chi_phí_hoạt_động[[#This Row],[Ngân sách]]=Chi_phí_hoạt_động[[#This Row],[Kỳ hiện tại]],0,IF(Chi_phí_hoạt_động[[#This Row],[Kỳ hiện tại]]>Chi_phí_hoạt_động[[#This Row],[Ngân sách]],ABS((Chi_phí_hoạt_động[[#This Row],[Kỳ hiện tại]]/Chi_phí_hoạt_động[[#This Row],[Ngân sách]])-1),IF(AND(Chi_phí_hoạt_động[[#This Row],[Kỳ hiện tại]]<Chi_phí_hoạt_động[[#This Row],[Ngân sách]],Chi_phí_hoạt_động[[#This Row],[Ngân sách]]<0),-((Chi_phí_hoạt_động[[#This Row],[Kỳ hiện tại]]/Chi_phí_hoạt_động[[#This Row],[Ngân sách]])-1),(Chi_phí_hoạt_động[[#This Row],[Kỳ hiện tại]]/Chi_phí_hoạt_động[[#This Row],[Ngân sách]])-1))),\"-\")","v":{"v":0,"d":"0.00%"}}]
[null,"Bán hàng và tiếp thị","Chi phí khác (ghi rõ)",{"$nulls":3},{"$f":"IFERROR(IF(Doanh_thu_bán_hàng=0,\"-\",Chi_phí_hoạt_động[Kỳ hiện tại]/Doanh_thu_bán_hàng),\"-\")","v":"-"},{"$f":"IFERROR(IF(Chi_phí_hoạt_động[[#This Row],[Kỳ trước]]=Chi_phí_hoạt_động[[#This Row],[Kỳ hiện tại]],0,IF(Chi_phí_hoạt_động[[#This Row],[Kỳ hiện tại]]>Chi_phí_hoạt_động[[#This Row],[Kỳ trước]],ABS((Chi_phí_hoạt_động[[#This Row],[Kỳ hiện tại]]/Chi_phí_hoạt_động[[#This Row],[Kỳ trước]])-1),IF(AND(Chi_phí_hoạt_động[[#This Row],[Kỳ hiện tại]]<Chi_phí_hoạt_động[[#This Row],[Kỳ trước]],Chi_phí_hoạt_động[[#This Row],[Kỳ trước]]<0),-((Chi_phí_hoạt_động[[#This Row],[Kỳ hiện tại]]/Chi_phí_hoạt_động[[#This Row],[Kỳ trước]])-1),(Chi_phí_hoạt_động[[#This Row],[Kỳ hiện tại]]/Chi_phí_hoạt_động[[#This Row],[Kỳ trước]])-1))),\"-\")","v":{"v":0,"d":"0.00%"}},{"$f":"IFERROR(IF(Chi_phí_hoạt_động[[#This Row],[Ngân sách]]=Chi_phí_hoạt_động[[#This Row],[Kỳ hiện tại]],0,IF(Chi_phí_hoạt_động[[#This Row],[Kỳ hiện tại]]>Chi_phí_hoạt_động[[#This Row],[Ngân sách]],ABS((Chi_phí_hoạt_động[[#This Row],[Kỳ hiện tại]]/Chi_phí_hoạt_động[[#This Row],[Ngân sách]])-1),IF(AND(Chi_phí_hoạt_động[[#This Row],[Kỳ hiện tại]]<Chi_phí_hoạt_động[[#This Row],[Ngân sách]],Chi_phí_hoạt_động[[#This Row],[Ngân sách]]<0),-((Chi_phí_hoạt_động[[#This Row],[Kỳ hiện tại]]/Chi_phí_hoạt_động[[#This Row],[Ngân sách]])-1),(Chi_phí_hoạt_động[[#This Row],[Kỳ hiện tại]]/Chi_phí_hoạt_động[[#This Row],[Ngân sách]])-1))),\"-\")","v":{"v":0,"d":"0.00%"}}]
[null,"Nghiên cứu và phát triển","Giấy phép công nghệ",{"$nulls":3},{"$f":"IFERROR(IF(Doanh_thu_bán_hàng=0,\"-\",Chi_phí_hoạt_động[Kỳ hiện tại]/Doanh_thu_bán_hàng),\"-\")","v":"-"},{"$f":"IFERROR(IF(Chi_phí_hoạt_động[[#This Row],[Kỳ trước]]=Chi_phí_hoạt_động[[#This Row],[Kỳ hiện tại]],0,IF(Chi_phí_hoạt_động[[#This Row],[Kỳ hiện tại]]>Chi_phí_hoạt_động[[#This Row],[Kỳ trước]],ABS((Chi_phí_hoạt_động[[#This Row],[Kỳ hiện tại]]/Chi_phí_hoạt_động[[#This Row],[Kỳ trước]])-1),IF(AND(Chi_phí_hoạt_động[[#This Row],[Kỳ hiện tại]]<Chi_phí_hoạt_động[[#This Row],[Kỳ trước]],Chi_phí_hoạt_động[[#This Row],[Kỳ trước]]<0),-((Chi_phí_hoạt_động[[#This Row],[Kỳ hiện tại]]/Chi_phí_hoạt_động[[#This Row],[Kỳ trước]])-1),(Chi_phí_hoạt_động[[#This Row],[Kỳ hiện tại]]/Chi_phí_hoạt_động[[#This Row],[Kỳ trước]])-1))),\"-\")","v":{"v":0,"d":"0.00%"}},{"$f":"IFERROR(IF(Chi_phí_hoạt_động[[#This Row],[Ngân sách]]=Chi_phí_hoạt_động[[#This Row],[Kỳ hiện tại]],0,IF(Chi_phí_hoạt_động[[#This Row],[Kỳ hiện tại]]>Chi_phí_hoạt_động[[#This Row],[Ngân sách]],ABS((Chi_phí_hoạt_động[[#This Row],[Kỳ hiện tại]]/Chi_phí_hoạt_động[[#This Row],[Ngân sách]])-1),IF(AND(Chi_phí_hoạt_động[[#This Row],[Kỳ hiện tại]]<Chi_phí_hoạt_động[[#This Row],[Ngân sách]],Chi_phí_hoạt_động[[#This Row],[Ngân sách]]<0),-((Chi_phí_hoạt_động[[#This Row],[Kỳ hiện tại]]/Chi_phí_hoạt_động[[#This Row],[Ngân sách]])-1),(Chi_phí_hoạt_động[[#This Row],[Kỳ hiện tại]]/Chi_phí_hoạt_động[[#This Row],[Ngân sách]])-1))),\"-\")","v":{"v":0,"d":"0.00%"}}]
[null,"Nghiên cứu và phát triển","Bằng sáng chế ",{"$nulls":3},{"$f":"IFERROR(IF(Doanh_thu_bán_hàng=0,\"-\",Chi_phí_hoạt_động[Kỳ hiện tại]/Doanh_thu_bán_hàng),\"-\")","v":"-"},{"$f":"IFERROR(IF(Chi_phí_hoạt_động[[#This Row],[Kỳ trước]]=Chi_phí_hoạt_động[[#This Row],[Kỳ hiện tại]],0,IF(Chi_phí_hoạt_động[[#This Row],[Kỳ hiện tại]]>Chi_phí_hoạt_động[[#This Row],[Kỳ trước]],ABS((Chi_phí_hoạt_động[[#This Row],[Kỳ hiện tại]]/Chi_phí_hoạt_động[[#This Row],[Kỳ trước]])-1),IF(AND(Chi_phí_hoạt_động[[#This Row],[Kỳ hiện tại]]<Chi_phí_hoạt_động[[#This Row],[Kỳ trước]],Chi_phí_hoạt_động[[#This Row],[Kỳ trước]]<0),-((Chi_phí_hoạt_động[[#This Row],[Kỳ hiện tại]]/Chi_phí_hoạt_động[[#This Row],[Kỳ trước]])-1),(Chi_phí_hoạt_động[[#This Row],[Kỳ hiện tại]]/Chi_phí_hoạt_động[[#This Row],[Kỳ trước]])-1))),\"-\")","v":{"v":0,"d":"0.00%"}},{"$f":"IFERROR(IF(Chi_phí_hoạt_động[[#This Row],[Ngân sách]]=Chi_phí_hoạt_động[[#This Row],[Kỳ hiện tại]],0,IF(Chi_phí_hoạt_động[[#This Row],[Kỳ hiện tại]]>Chi_phí_hoạt_động[[#This Row],[Ngân sách]],ABS((Chi_phí_hoạt_động[[#This Row],[Kỳ hiện tại]]/Chi_phí_hoạt_động[[#This Row],[Ngân sách]])-1),IF(AND(Chi_phí_hoạt_động[[#This Row],[Kỳ hiện tại]]<Chi_phí_hoạt_động[[#This Row],[Ngân sách]],Chi_phí_hoạt_động[[#This Row],[Ngân sách]]<0),-((Chi_phí_hoạt_động[[#This Row],[Kỳ hiện tại]]/Chi_phí_hoạt_động[[#This Row],[Ngân sách]])-1),(Chi_phí_hoạt_động[[#This Row],[Kỳ hiện tại]]/Chi_phí_hoạt_động[[#This Row],[Ngân sách]])-1))),\"-\")","v":{"v":0,"d":"0.00%"}}]
[null,"Nghiên cứu và phát triển","Chi phí khác (ghi rõ)",{"$nulls":3},{"$f":"IFERROR(IF(Doanh_thu_bán_hàng=0,\"-\",Chi_phí_hoạt_động[Kỳ hiện tại]/Doanh_thu_bán_hàng),\"-\")","v":"-"},{"$f":"IFERROR(IF(Chi_phí_hoạt_động[[#This Row],[Kỳ trước]]=Chi_phí_hoạt_động[[#This Row],[Kỳ hiện tại]],0,IF(Chi_phí_hoạt_động[[#This Row],[Kỳ hiện tại]]>Chi_phí_hoạt_động[[#This Row],[Kỳ trước]],ABS((Chi_phí_hoạt_động[[#This Row],[Kỳ hiện tại]]/Chi_phí_hoạt_động[[#This Row],[Kỳ trước]])-1),IF(AND(Chi_phí_hoạt_động[[#This Row],[Kỳ hiện tại]]<Chi_phí_hoạt_động[[#This Row],[Kỳ trước]],Chi_phí_hoạt_động[[#This Row],[Kỳ trước]]<0),-((Chi_phí_hoạt_động[[#This Row],[Kỳ hiện tại]]/Chi_phí_hoạt_động[[#This Row],[Kỳ trước]])-1),(Chi_phí_hoạt_động[[#This Row],[Kỳ hiện tại]]/Chi_phí_hoạt_động[[#This Row],[Kỳ trước]])-1))),\"-\")","v":{"v":0,"d":"0.00%"}},{"$f":"IFERROR(IF(Chi_phí_hoạt_động[[#This Row],[Ngân sách]]=Chi_phí_hoạt_động[[#This Row],[Kỳ hiện tại]],0,IF(Chi_phí_hoạt_động[[#This Row],[Kỳ hiện tại]]>Chi_phí_hoạt_động[[#This Row],[Ngân sách]],ABS((Chi_phí_hoạt_động[[#This Row],[Kỳ hiện tại]]/Chi_phí_hoạt_động[[#This Row],[Ngân sách]])-1),IF(AND(Chi_phí_hoạt_động[[#This Row],[Kỳ hiện tại]]<Chi_phí_hoạt_động[[#This Row],[Ngân sách]],Chi_phí_hoạt_động[[#This Row],[Ngân sách]]<0),-((Chi_phí_hoạt_động[[#This Row],[Kỳ hiện tại]]/Chi_phí_hoạt_động[[#This Row],[Ngân sách]])-1),(Chi_phí_hoạt_động[[#This Row],[Kỳ hiện tại]]/Chi_phí_hoạt_động[[#This Row],[Ngân sách]])-1))),\"-\")","v":{"v":0,"d":"0.00%"}}]
[null,"Nghiên cứu và phát triển","Chi phí khác (ghi rõ)",{"$nulls":3},{"$f":"IFERROR(IF(Doanh_thu_bán_hàng=0,\"-\",Chi_phí_hoạt_động[Kỳ hiện tại]/Doanh_thu_bán_hàng),\"-\")","v":"-"},{"$f":"IFERROR(IF(Chi_phí_hoạt_động[[#This Row],[Kỳ trước]]=Chi_phí_hoạt_động[[#This Row],[Kỳ hiện tại]],0,IF(Chi_phí_hoạt_động[[#This Row],[Kỳ hiện tại]]>Chi_phí_hoạt_động[[#This Row],[Kỳ trước]],ABS((Chi_phí_hoạt_động[[#This Row],[Kỳ hiện tại]]/Chi_phí_hoạt_động[[#This Row],[Kỳ trước]])-1),IF(AND(Chi_phí_hoạt_động[[#This Row],[Kỳ hiện tại]]<Chi_phí_hoạt_động[[#This Row],[Kỳ trước]],Chi_phí_hoạt_động[[#This Row],[Kỳ trước]]<0),-((Chi_phí_hoạt_động[[#This Row],[Kỳ hiện tại]]/Chi_phí_hoạt_động[[#This Row],[Kỳ trước]])-1),(Chi_phí_hoạt_động[[#This Row],[Kỳ hiện tại]]/Chi_phí_hoạt_động[[#This Row],[Kỳ trước]])-1))),\"-\")","v":{"v":0,"d":"0.00%"}},{"$f":"IFERROR(IF(Chi_phí_hoạt_động[[#This Row],[Ngân sách]]=Chi_phí_hoạt_động[[#This Row],[Kỳ hiện tại]],0,IF(Chi_phí_hoạt_động[[#This Row],[Kỳ hiện tại]]>Chi_phí_hoạt_động[[#This Row],[Ngân sách]],ABS((Chi_phí_hoạt_động[[#This Row],[Kỳ hiện tại]]/Chi_phí_hoạt_động[[#This Row],[Ngân sách]])-1),IF(AND(Chi_phí_hoạt_động[[#This Row],[Kỳ hiện tại]]<Chi_phí_hoạt_động[[#This Row],[Ngân sách]],Chi_phí_hoạt_động[[#This Row],[Ngân sách]]<0),-((Chi_phí_hoạt_động[[#This Row],[Kỳ hiện tại]]/Chi_phí_hoạt_động[[#This Row],[Ngân sách]])-1),(Chi_phí_hoạt_động[[#This Row],[Kỳ hiện tại]]/Chi_phí_hoạt_động[[#This Row],[Ngân sách]])-1))),\"-\")","v":{"v":0,"d":"0.00%"}}]
[null,"Quản lý doanh nghiệp","Tiền lương và tiền công",{"$nulls":3},{"$f":"IFERROR(IF(Doanh_thu_bán_hàng=0,\"-\",Chi_phí_hoạt_động[Kỳ hiện tại]/Doanh_thu_bán_hàng),\"-\")","v":"-"},{"$f":"IFERROR(IF(Chi_phí_hoạt_động[[#This Row],[Kỳ trước]]=Chi_phí_hoạt_động[[#This Row],[Kỳ hiện tại]],0,IF(Chi_phí_hoạt_động[[#This Row],[Kỳ hiện tại]]>Chi_phí_hoạt_động[[#This Row],[Kỳ trước]],ABS((Chi_phí_hoạt_động[[#This Row],[Kỳ hiện tại]]/Chi_phí_hoạt_động[[#This Row],[Kỳ trước]])-1),IF(AND(Chi_phí_hoạt_động[[#This Row],[Kỳ hiện tại]]<Chi_phí_hoạt_động[[#This Row],[Kỳ trước]],Chi_phí_hoạt_động[[#This Row],[Kỳ trước]]<0),-((Chi_phí_hoạt_động[[#This Row],[Kỳ hiện tại]]/Chi_phí_hoạt_động[[#This Row],[Kỳ trước]])-1),(Chi_phí_hoạt_động[[#This Row],[Kỳ hiện tại]]/Chi_phí_hoạt_động[[#This Row],[Kỳ trước]])-1))),\"-\")","v":{"v":0,"d":"0.00%"}},{"$f":"IFERROR(IF(Chi_phí_hoạt_động[[#This Row],[Ngân sách]]=Chi_phí_hoạt_động[[#This Row],[Kỳ hiện tại]],0,IF(Chi_phí_hoạt_động[[#This Row],[Kỳ hiện tại]]>Chi_phí_hoạt_động[[#This Row],[Ngân sách]],ABS((Chi_phí_hoạt_động[[#This Row],[Kỳ hiện tại]]/Chi_phí_hoạt_động[[#This Row],[Ngân sách]])-1),IF(AND(Chi_phí_hoạt_động[[#This Row],[Kỳ hiện tại]]<Chi_phí_hoạt_động[[#This Row],[Ngân sách]],Chi_phí_hoạt_động[[#This Row],[Ngân sách]]<0),-((Chi_phí_hoạt_động[[#This Row],[Kỳ hiện tại]]/Chi_phí_hoạt_động[[#This Row],[Ngân sách]])-1),(Chi_phí_hoạt_động[[#This Row],[Kỳ hiện tại]]/Chi_phí_hoạt_động[[#This Row],[Ngân sách]])-1))),\"-\")","v":{"v":0,"d":"0.00%"}}]
[null,"Quản lý doanh nghiệp","Dịch vụ bên ngoài",{"$nulls":3},{"$f":"IFERROR(IF(Doanh_thu_bán_hàng=0,\"-\",Chi_phí_hoạt_động[Kỳ hiện tại]/Doanh_thu_bán_hàng),\"-\")","v":"-"},{"$f":"IFERROR(IF(Chi_phí_hoạt_động[[#This Row],[Kỳ trước]]=Chi_phí_hoạt_động[[#This Row],[Kỳ hiện tại]],0,IF(Chi_phí_hoạt_động[[#This Row],[Kỳ hiện tại]]>Chi_phí_hoạt_động[[#This Row],[Kỳ trước]],ABS((Chi_phí_hoạt_động[[#This Row],[Kỳ hiện tại]]/Chi_phí_hoạt_động[[#This Row],[Kỳ trước]])-1),IF(AND(Chi_phí_hoạt_động[[#This Row],[Kỳ hiện tại]]<Chi_phí_hoạt_động[[#This Row],[Kỳ trước]],Chi_phí_hoạt_động[[#This Row],[Kỳ trước]]<0),-((Chi_phí_hoạt_động[[#This Row],[Kỳ hiện tại]]/Chi_phí_hoạt_động[[#This Row],[Kỳ trước]])-1),(Chi_phí_hoạt_động[[#This Row],[Kỳ hiện tại]]/Chi_phí_hoạt_động[[#This Row],[Kỳ trước]])-1))),\"-\")","v":{"v":0,"d":"0.00%"}},{"$f":"IFERROR(IF(Chi_phí_hoạt_động[[#This Row],[Ngân sách]]=Chi_phí_hoạt_động[[#This Row],[Kỳ hiện tại]],0,IF(Chi_phí_hoạt_động[[#This Row],[Kỳ hiện tại]]>Chi_phí_hoạt_động[[#This Row],[Ngân sách]],ABS((Chi_phí_hoạt_động[[#This Row],[Kỳ hiện tại]]/Chi_phí_hoạt_động[[#This Row],[Ngân sách]])-1),IF(AND(Chi_phí_hoạt_động[[#This Row],[Kỳ hiện tại]]<Chi_phí_hoạt_động[[#This Row],[Ngân sách]],Chi_phí_hoạt_động[[#This Row],[Ngân sách]]<0),-((Chi_phí_hoạt_động[[#This Row],[Kỳ hiện tại]]/Chi_phí_hoạt_động[[#This Row],[Ngân sách]])-1),(Chi_phí_hoạt_động[[#This Row],[Kỳ hiện tại]]/Chi_phí_hoạt_động[[#This Row],[Ngân sách]])-1))),\"-\")","v":{"v":0,"d":"0.00%"}}]
[null,"Quản lý doanh nghiệp","Dụng cụ",{"$nulls":3},{"$f":"IFERROR(IF(Doanh_thu_bán_hàng=0,\"-\",Chi_phí_hoạt_động[Kỳ hiện tại]/Doanh_thu_bán_hàng),\"-\")","v":"-"},{"$f":"IFERROR(IF(Chi_phí_hoạt_động[[#This Row],[Kỳ trước]]=Chi_phí_hoạt_động[[#This Row],[Kỳ hiện tại]],0,IF(Chi_phí_hoạt_động[[#This Row],[Kỳ hiện tại]]>Chi_phí_hoạt_động[[#This Row],[Kỳ trước]],ABS((Chi_phí_hoạt_động[[#This Row],[Kỳ hiện tại]]/Chi_phí_hoạt_động[[#This Row],[Kỳ trước]])-1),IF(AND(Chi_phí_hoạt_động[[#This Row],[Kỳ hiện tại]]<Chi_phí_hoạt_động[[#This Row],[Kỳ trước]],Chi_phí_hoạt_động[[#This Row],[Kỳ trước]]<0),-((Chi_phí_hoạt_động[[#This Row],[Kỳ hiện tại]]/Chi_phí_hoạt_động[[#This Row],[Kỳ trước]])-1),(Chi_phí_hoạt_động[[#This Row],[Kỳ hiện tại]]/Chi_phí_hoạt_động[[#This Row],[Kỳ trước]])-1))),\"-\")","v":{"v":0,"d":"0.00%"}},{"$f":"IFERROR(IF(Chi_phí_hoạt_động[[#This Row],[Ngân sách]]=Chi_phí_hoạt_động[[#This Row],[Kỳ hiện tại]],0,IF(Chi_phí_hoạt_động[[#This Row],[Kỳ hiện tại]]>Chi_phí_hoạt_động[[#This Row],[Ngân sách]],ABS((Chi_phí_hoạt_động[[#This Row],[Kỳ hiện tại]]/Chi_phí_hoạt_động[[#This Row],[Ngân sách]])-1),IF(AND(Chi_phí_hoạt_động[[#This Row],[Kỳ hiện tại]]<Chi_phí_hoạt_động[[#This Row],[Ngân sách]],Chi_phí_hoạt_động[[#This Row],[Ngân sách]]<0),-((Chi_phí_hoạt_động[[#This Row],[Kỳ hiện tại]]/Chi_phí_hoạt_động[[#This Row],[Ngân sách]])-1),(Chi_phí_hoạt_động[[#This Row],[Kỳ hiện tại]]/Chi_phí_hoạt_động[[#This Row],[Ngân sách]])-1))),\"-\")","v":{"v":0,"d":"0.00%"}}]
[null,"Quản lý doanh nghiệp","Ăn uống và giải trí",{"$nulls":3},{"$f":"IFERROR(IF(Doanh_thu_bán_hàng=0,\"-\",Chi_phí_hoạt_động[Kỳ hiện tại]/Doanh_thu_bán_hàng),\"-\")","v":"-"},{"$f":"IFERROR(IF(Chi_phí_hoạt_động[[#This Row],[Kỳ trước]]=Chi_phí_hoạt_động[[#This Row],[Kỳ hiện tại]],0,IF(Chi_phí_hoạt_động[[#This Row],[Kỳ hiện tại]]>Chi_phí_hoạt_động[[#This Row],[Kỳ trước]],ABS((Chi_phí_hoạt_động[[#This Row],[Kỳ hiện tại]]/Chi_phí_hoạt_động[[#This Row],[Kỳ trước]])-1),IF(AND(Chi_phí_hoạt_động[[#This Row],[Kỳ hiện tại]]<Chi_phí_hoạt_động[[#This Row],[Kỳ trước]],Chi_phí_hoạt_động[[#This Row],[Kỳ trước]]<0),-((Chi_phí_hoạt_động[[#This Row],[Kỳ hiện tại]]/Chi_phí_hoạt_động[[#This Row],[Kỳ trước]])-1),(Chi_phí_hoạt_động[[#This Row],[Kỳ hiện tại]]/Chi_phí_hoạt_động[[#This Row],[Kỳ trước]])-1))),\"-\")","v":{"v":0,"d":"0.00%"}},{"$f":"IFERROR(IF(Chi_phí_hoạt_động[[#This Row],[Ngân sách]]=Chi_phí_hoạt_động[[#This Row],[Kỳ hiện tại]],0,IF(Chi_phí_hoạt_động[[#This Row],[Kỳ hiện tại]]>Chi_phí_hoạt_động[[#This Row],[Ngân sách]],ABS((Chi_phí_hoạt_động[[#This Row],[Kỳ hiện tại]]/Chi_phí_hoạt_động[[#This Row],[Ngân sách]])-1),IF(AND(Chi_phí_hoạt_động[[#This Row],[Kỳ hiện tại]]<Chi_phí_hoạt_động[[#This Row],[Ngân sách]],Chi_phí_hoạt_động[[#This Row],[Ngân sách]]<0),-((Chi_phí_hoạt_động[[#This Row],[Kỳ hiện tại]]/Chi_phí_hoạt_động[[#This Row],[Ngân sách]])-1),(Chi_phí_hoạt_động[[#This Row],[Kỳ hiện tại]]/Chi_phí_hoạt_động[[#This Row],[Ngân sách]])-1))),\"-\")","v":{"v":0,"d":"0.00%"}}]
[null,"Quản lý doanh nghiệp","Tiền thuê",{"$nulls":3},{"$f":"IFERROR(IF(Doanh_thu_bán_hàng=0,\"-\",Chi_phí_hoạt_động[Kỳ hiện tại]/Doanh_thu_bán_hàng),\"-\")","v":"-"},{"$f":"IFERROR(IF(Chi_phí_hoạt_động[[#This Row],[Kỳ trước]]=Chi_phí_hoạt_động[[#This Row],[Kỳ hiện tại]],0,IF(Chi_phí_hoạt_động[[#This Row],[Kỳ hiện tại]]>Chi_phí_hoạt_động[[#This Row],[Kỳ trước]],ABS((Chi_phí_hoạt_động[[#This Row],[Kỳ hiện tại]]/Chi_phí_hoạt_động[[#This Row],[Kỳ trước]])-1),IF(AND(Chi_phí_hoạt_động[[#This Row],[Kỳ hiện tại]]<Chi_phí_hoạt_động[[#This Row],[Kỳ trước]],Chi_phí_hoạt_động[[#This Row],[Kỳ trước]]<0),-((Chi_phí_hoạt_động[[#This Row],[Kỳ hiện tại]]/Chi_phí_hoạt_động[[#This Row],[Kỳ trước]])-1),(Chi_phí_hoạt_động[[#This Row],[Kỳ hiện tại]]/Chi_phí_hoạt_động[[#This Row],[Kỳ trước]])-1))),\"-\")","v":{"v":0,"d":"0.00%"}},{"$f":"IFERROR(IF(Chi_phí_hoạt_động[[#This Row],[Ngân sách]]=Chi_phí_hoạt_động[[#This Row],[Kỳ hiện tại]],0,IF(Chi_phí_hoạt_động[[#This Row],[Kỳ hiện tại]]>Chi_phí_hoạt_động[[#This Row],[Ngân sách]],ABS((Chi_phí_hoạt_động[[#This Row],[Kỳ hiện tại]]/Chi_phí_hoạt_động[[#This Row],[Ngân sách]])-1),IF(AND(Chi_phí_hoạt_động[[#This Row],[Kỳ hiện tại]]<Chi_phí_hoạt_động[[#This Row],[Ngân sách]],Chi_phí_hoạt_động[[#This Row],[Ngân sách]]<0),-((Chi_phí_hoạt_động[[#This Row],[Kỳ hiện tại]]/Chi_phí_hoạt_động[[#This Row],[Ngân sách]])-1),(Chi_phí_hoạt_động[[#This Row],[Kỳ hiện tại]]/Chi_phí_hoạt_động[[#This Row],[Ngân sách]])-1))),\"-\")","v":{"v":0,"d":"0.00%"}}]
[null,"Quản lý doanh nghiệp","Điện thoại",{"$nulls":3},{"$f":"IFERROR(IF(Doanh_thu_bán_hàng=0,\"-\",Chi_phí_hoạt_động[Kỳ hiện tại]/Doanh_thu_bán_hàng),\"-\")","v":"-"},{"$f":"IFERROR(IF(Chi_phí_hoạt_động[[#This Row],[Kỳ trước]]=Chi_phí_hoạt_động[[#This Row],[Kỳ hiện tại]],0,IF(Chi_phí_hoạt_động[[#This Row],[Kỳ hiện tại]]>Chi_phí_hoạt_động[[#This Row],[Kỳ trước]],ABS((Chi_phí_hoạt_động[[#This Row],[Kỳ hiện tại]]/Chi_phí_hoạt_động[[#This Row],[Kỳ trước]])-1),IF(AND(Chi_phí_hoạt_động[[#This Row],[Kỳ hiện tại]]<Chi_phí_hoạt_động[[#This Row],[Kỳ trước]],Chi_phí_hoạt_động[[#This Row],[Kỳ trước]]<0),-((Chi_phí_hoạt_động[[#This Row],[Kỳ hiện tại]]/Chi_phí_hoạt_động[[#This Row],[Kỳ trước]])-1),(Chi_phí_hoạt_động[[#This Row],[Kỳ hiện tại]]/Chi_phí_hoạt_động[[#This Row],[Kỳ trước]])-1))),\"-\")","v":{"v":0,"d":"0.00%"}},{"$f":"IFERROR(IF(Chi_phí_hoạt_động[[#This Row],[Ngân sách]]=Chi_phí_hoạt_động[[#This Row],[Kỳ hiện tại]],0,IF(Chi_phí_hoạt_động[[#This Row],[Kỳ hiện tại]]>Chi_phí_hoạt_động[[#This Row],[Ngân sách]],ABS((Chi_phí_hoạt_động[[#This Row],[Kỳ hiện tại]]/Chi_phí_hoạt_động[[#This Row],[Ngân sách]])-1),IF(AND(Chi_phí_hoạt_động[[#This Row],[Kỳ hiện tại]]<Chi_phí_hoạt_động[[#This Row],[Ngân sách]],Chi_phí_hoạt_động[[#This Row],[Ngân sách]]<0),-((Chi_phí_hoạt_động[[#This Row],[Kỳ hiện tại]]/Chi_phí_hoạt_động[[#This Row],[Ngân sách]])-1),(Chi_phí_hoạt_động[[#This Row],[Kỳ hiện tại]]/Chi_phí_hoạt_động[[#This Row],[Ngân sách]])-1))),\"-\")","v":{"v":0,"d":"0.00%"}}]
[null,"Quản lý doanh nghiệp","Tiện ích",{"$nulls":3},{"$f":"IFERROR(IF(Doanh_thu_bán_hàng=0,\"-\",Chi_phí_hoạt_động[Kỳ hiện tại]/Doanh_thu_bán_hàng),\"-\")","v":"-"},{"$f":"IFERROR(IF(Chi_phí_hoạt_động[[#This Row],[Kỳ trước]]=Chi_phí_hoạt_động[[#This Row],[Kỳ hiện tại]],0,IF(Chi_phí_hoạt_động[[#This Row],[Kỳ hiện tại]]>Chi_phí_hoạt_động[[#This Row],[Kỳ trước]],ABS((Chi_phí_hoạt_động[[#This Row],[Kỳ hiện tại]]/Chi_phí_hoạt_động[[#This Row],[Kỳ trước]])-1),IF(AND(Chi_phí_hoạt_động[[#This Row],[Kỳ hiện tại]]<Chi_phí_hoạt_động[[#This Row],[Kỳ trước]],Chi_phí_hoạt_động[[#This Row],[Kỳ trước]]<0),-((Chi_phí_hoạt_động[[#This Row],[Kỳ hiện tại]]/Chi_phí_hoạt_động[[#This Row],[Kỳ trước]])-1),(Chi_phí_hoạt_động[[#This Row],[Kỳ hiện tại]]/Chi_phí_hoạt_động[[#This Row],[Kỳ trước]])-1))),\"-\")","v":{"v":0,"d":"0.00%"}},{"$f":"IFERROR(IF(Chi_phí_hoạt_động[[#This Row],[Ngân sách]]=Chi_phí_hoạt_động[[#This Row],[Kỳ hiện tại]],0,IF(Chi_phí_hoạt_động[[#This Row],[Kỳ hiện tại]]>Chi_phí_hoạt_động[[#This Row],[Ngân sách]],ABS((Chi_phí_hoạt_động[[#This Row],[Kỳ hiện tại]]/Chi_phí_hoạt_động[[#This Row],[Ngân sách]])-1),IF(AND(Chi_phí_hoạt_động[[#This Row],[Kỳ hiện tại]]<Chi_phí_hoạt_động[[#This Row],[Ngân sách]],Chi_phí_hoạt_động[[#This Row],[Ngân sách]]<0),-((Chi_phí_hoạt_động[[#This Row],[Kỳ hiện tại]]/Chi_phí_hoạt_động[[#This Row],[Ngân sách]])-1),(Chi_phí_hoạt_động[[#This Row],[Kỳ hiện tại]]/Chi_phí_hoạt_động[[#This Row],[Ngân sách]])-1))),\"-\")","v":{"v":0,"d":"0.00%"}}]
[null,"Quản lý doanh nghiệp","Khấu hao",{"$nulls":3},{"$f":"IFERROR(IF(Doanh_thu_bán_hàng=0,\"-\",Chi_phí_hoạt_động[Kỳ hiện tại]/Doanh_thu_bán_hàng),\"-\")","v":"-"},{"$f":"IFERROR(IF(Chi_phí_hoạt_động[[#This Row],[Kỳ trước]]=Chi_phí_hoạt_động[[#This Row],[Kỳ hiện tại]],0,IF(Chi_phí_hoạt_động[[#This Row],[Kỳ hiện tại]]>Chi_phí_hoạt_động[[#This Row],[Kỳ trước]],ABS((Chi_phí_hoạt_động[[#This Row],[Kỳ hiện tại]]/Chi_phí_hoạt_động[[#This Row],[Kỳ trước]])-1),IF(AND(Chi_phí_hoạt_động[[#This Row],[Kỳ hiện tại]]<Chi_phí_hoạt_động[[#This Row],[Kỳ trước]],Chi_phí_hoạt_động[[#This Row],[Kỳ trước]]<0),-((Chi_phí_hoạt_động[[#This Row],[Kỳ hiện tại]]/Chi_phí_hoạt_động[[#This Row],[Kỳ trước]])-1),(Chi_phí_hoạt_động[[#This Row],[Kỳ hiện tại]]/Chi_phí_hoạt_động[[#This Row],[Kỳ trước]])-1))),\"-\")","v":{"v":0,"d":"0.00%"}},{"$f":"IFERROR(IF(Chi_phí_hoạt_động[[#This Row],[Ngân sách]]=Chi_phí_hoạt_động[[#This Row],[Kỳ hiện tại]],0,IF(Chi_phí_hoạt_động[[#This Row],[Kỳ hiện tại]]>Chi_phí_hoạt_động[[#This Row],[Ngân sách]],ABS((Chi_phí_hoạt_động[[#This Row],[Kỳ hiện tại]]/Chi_phí_hoạt_động[[#This Row],[Ngân sách]])-1),IF(AND(Chi_phí_hoạt_động[[#This Row],[Kỳ hiện tại]]<Chi_phí_hoạt_động[[#This Row],[Ngân sách]],Chi_phí_hoạt_động[[#This Row],[Ngân sách]]<0),-((Chi_phí_hoạt_động[[#This Row],[Kỳ hiện tại]]/Chi_phí_hoạt_động[[#This Row],[Ngân sách]])-1),(Chi_phí_hoạt_động[[#This Row],[Kỳ hiện tại]]/Chi_phí_hoạt_động[[#This Row],[Ngân sách]])-1))),\"-\")","v":{"v":0,"d":"0.00%"}}]
[null,"Quản lý doanh nghiệp","Bảo hiểm",{"$nulls":3},{"$f":"IFERROR(IF(Doanh_thu_bán_hàng=0,\"-\",Chi_phí_hoạt_động[Kỳ hiện tại]/Doanh_thu_bán_hàng),\"-\")","v":"-"},{"$f":"IFERROR(IF(Chi_phí_hoạt_động[[#This Row],[Kỳ trước]]=Chi_phí_hoạt_động[[#This Row],[Kỳ hiện tại]],0,IF(Chi_phí_hoạt_động[[#This Row],[Kỳ hiện tại]]>Chi_phí_hoạt_động[[#This Row],[Kỳ trước]],ABS((Chi_phí_hoạt_động[[#This Row],[Kỳ hiện tại]]/Chi_phí_hoạt_động[[#This Row],[Kỳ trước]])-1),IF(AND(Chi_phí_hoạt_động[[#This Row],[Kỳ hiện tại]]<Chi_phí_hoạt_động[[#This Row],[Kỳ trước]],Chi_phí_hoạt_động[[#This Row],[Kỳ trước]]<0),-((Chi_phí_hoạt_động[[#This Row],[Kỳ hiện tại]]/Chi_phí_hoạt_động[[#This Row],[Kỳ trước]])-1),(Chi_phí_hoạt_động[[#This Row],[Kỳ hiện tại]]/Chi_phí_hoạt_động[[#This Row],[Kỳ trước]])-1))),\"-\")","v":{"v":0,"d":"0.00%"}},{"$f":"IFERROR(IF(Chi_phí_hoạt_động[[#This Row],[Ngân sách]]=Chi_phí_hoạt_động[[#This Row],[Kỳ hiện tại]],0,IF(Chi_phí_hoạt_động[[#This Row],[Kỳ hiện tại]]>Chi_phí_hoạt_động[[#This Row],[Ngân sách]],ABS((Chi_phí_hoạt_động[[#This Row],[Kỳ hiện tại]]/Chi_phí_hoạt_động[[#This Row],[Ngân sách]])-1),IF(AND(Chi_phí_hoạt_động[[#This Row],[Kỳ hiện tại]]<Chi_phí_hoạt_động[[#This Row],[Ngân sách]],Chi_phí_hoạt_động[[#This Row],[Ngân sách]]<0),-((Chi_phí_hoạt_động[[#This Row],[Kỳ hiện tại]]/Chi_phí_hoạt_động[[#This Row],[Ngân sách]])-1),(Chi_phí_hoạt_động[[#This Row],[Kỳ hiện tại]]/Chi_phí_hoạt_động[[#This Row],[Ngân sách]])-1))),\"-\")","v":{"v":0,"d":"0.00%"}}]
[null,"Quản lý doanh nghiệp","Sửa chữa và bảo trì",{"$nulls":3},{"$f":"IFERROR(IF(Doanh_thu_bán_hàng=0,\"-\",Chi_phí_hoạt_động[Kỳ hiện tại]/Doanh_thu_bán_hàng),\"-\")","v":"-"},{"$f":"IFERROR(IF(Chi_phí_hoạt_động[[#This Row],[Kỳ trước]]=Chi_phí_hoạt_động[[#This Row],[Kỳ hiện tại]],0,IF(Chi_phí_hoạt_động[[#This Row],[Kỳ hiện tại]]>Chi_phí_hoạt_động[[#This Row],[Kỳ trước]],ABS((Chi_phí_hoạt_động[[#This Row],[Kỳ hiện tại]]/Chi_phí_hoạt_động[[#This Row],[Kỳ trước]])-1),IF(AND(Chi_phí_hoạt_động[[#This Row],[Kỳ hiện tại]]<Chi_phí_hoạt_động[[#This Row],[Kỳ trước]],Chi_phí_hoạt_động[[#This Row],[Kỳ trước]]<0),-((Chi_phí_hoạt_động[[#This Row],[Kỳ hiện tại]]/Chi_phí_hoạt_động[[#This Row],[Kỳ trước]])-1),(Chi_phí_hoạt_động[[#This Row],[Kỳ hiện tại]]/Chi_phí_hoạt_động[[#This Row],[Kỳ trước]])-1))),\"-\")","v":{"v":0,"d":"0.00%"}},{"$f":"IFERROR(IF(Chi_phí_hoạt_động[[#This Row],[Ngân sách]]=Chi_phí_hoạt_động[[#This Row],[Kỳ hiện tại]],0,IF(Chi_phí_hoạt_động[[#This Row],[Kỳ hiện tại]]>Chi_phí_hoạt_động[[#This Row],[Ngân sách]],ABS((Chi_phí_hoạt_động[[#This Row],[Kỳ hiện tại]]/Chi_phí_hoạt_động[[#This Row],[Ngân sách]])-1),IF(AND(Chi_phí_hoạt_động[[#This Row],[Kỳ hiện tại]]<Chi_phí_hoạt_động[[#This Row],[Ngân sách]],Chi_phí_hoạt_động[[#This Row],[Ngân sách]]<0),-((Chi_phí_hoạt_động[[#This Row],[Kỳ hiện tại]]/Chi_phí_hoạt_động[[#This Row],[Ngân sách]])-1),(Chi_phí_hoạt_động[[#This Row],[Kỳ hiện tại]]/Chi_phí_hoạt_động[[#This Row],[Ngân sách]])-1))),\"-\")","v":{"v":0,"d":"0.00%"}}]
[null,"Quản lý doanh nghiệp","Chi phí khác (ghi rõ)",{"$nulls":3},{"$f":"IFERROR(IF(Doanh_thu_bán_hàng=0,\"-\",Chi_phí_hoạt_động[Kỳ hiện tại]/Doanh_thu_bán_hàng),\"-\")","v":"-"},{"$f":"IFERROR(IF(Chi_phí_hoạt_động[[#This Row],[Kỳ trước]]=Chi_phí_hoạt_động[[#This Row],[Kỳ hiện tại]],0,IF(Chi_phí_hoạt_động[[#This Row],[Kỳ hiện tại]]>Chi_phí_hoạt_động[[#This Row],[Kỳ trước]],ABS((Chi_phí_hoạt_động[[#This Row],[Kỳ hiện tại]]/Chi_phí_hoạt_động[[#This Row],[Kỳ trước]])-1),IF(AND(Chi_phí_hoạt_động[[#This Row],[Kỳ hiện tại]]<Chi_phí_hoạt_động[[#This Row],[Kỳ trước]],Chi_phí_hoạt_động[[#This Row],[Kỳ trước]]<0),-((Chi_phí_hoạt_động[[#This Row],[Kỳ hiện tại]]/Chi_phí_hoạt_động[[#This Row],[Kỳ trước]])-1),(Chi_phí_hoạt_động[[#This Row],[Kỳ hiện tại]]/Chi_phí_hoạt_động[[#This Row],[Kỳ trước]])-1))),\"-\")","v":{"v":0,"d":"0.00%"}},{"$f":"IFERROR(IF(Chi_phí_hoạt_động[[#This Row],[Ngân sách]]=Chi_phí_hoạt_động[[#This Row],[Kỳ hiện tại]],0,IF(Chi_phí_hoạt_động[[#This Row],[Kỳ hiện tại]]>Chi_phí_hoạt_động[[#This Row],[Ngân sách]],ABS((Chi_phí_hoạt_động[[#This Row],[Kỳ hiện tại]]/Chi_phí_hoạt_động[[#This Row],[Ngân sách]])-1),IF(AND(Chi_phí_hoạt_động[[#This Row],[Kỳ hiện tại]]<Chi_phí_hoạt_động[[#This Row],[Ngân sách]],Chi_phí_hoạt_động[[#This Row],[Ngân sách]]<0),-((Chi_phí_hoạt_động[[#This Row],[Kỳ hiện tại]]/Chi_phí_hoạt_động[[#This Row],[Ngân sách]])-1),(Chi_phí_hoạt_động[[#This Row],[Kỳ hiện tại]]/Chi_phí_hoạt_động[[#This Row],[Ngân sách]])-1))),\"-\")","v":{"v":0,"d":"0.00%"}}]
[null,"Quản lý doanh nghiệp","Chi phí khác (ghi rõ)",{"$nulls":3},{"$f":"IFERROR(IF(Doanh_thu_bán_hàng=0,\"-\",Chi_phí_hoạt_động[Kỳ hiện tại]/Doanh_thu_bán_hàng),\"-\")","v":"-"},{"$f":"IFERROR(IF(Chi_phí_hoạt_động[[#This Row],[Kỳ trước]]=Chi_phí_hoạt_động[[#This Row],[Kỳ hiện tại]],0,IF(Chi_phí_hoạt_động[[#This Row],[Kỳ hiện tại]]>Chi_phí_hoạt_động[[#This Row],[Kỳ trước]],ABS((Chi_phí_hoạt_động[[#This Row],[Kỳ hiện tại]]/Chi_phí_hoạt_động[[#This Row],[Kỳ trước]])-1),IF(AND(Chi_phí_hoạt_động[[#This Row],[Kỳ hiện tại]]<Chi_phí_hoạt_động[[#This Row],[Kỳ trước]],Chi_phí_hoạt_động[[#This Row],[Kỳ trước]]<0),-((Chi_phí_hoạt_động[[#This Row],[Kỳ hiện tại]]/Chi_phí_hoạt_động[[#This Row],[Kỳ trước]])-1),(Chi_phí_hoạt_động[[#This Row],[Kỳ hiện tại]]/Chi_phí_hoạt_động[[#This Row],[Kỳ trước]])-1))),\"-\")","v":{"v":0,"d":"0.00%"}},{"$f":"IFERROR(IF(Chi_phí_hoạt_động[[#This Row],[Ngân sách]]=Chi_phí_hoạt_động[[#This Row],[Kỳ hiện tại]],0,IF(Chi_phí_hoạt_động[[#This Row],[Kỳ hiện tại]]>Chi_phí_hoạt_động[[#This Row],[Ngân sách]],ABS((Chi_phí_hoạt_động[[#This Row],[Kỳ hiện tại]]/Chi_phí_hoạt_động[[#This Row],[Ngân sách]])-1),IF(AND(Chi_phí_hoạt_động[[#This Row],[Kỳ hiện tại]]<Chi_phí_hoạt_động[[#This Row],[Ngân sách]],Chi_phí_hoạt_động[[#This Row],[Ngân sách]]<0),-((Chi_phí_hoạt_động[[#This Row],[Kỳ hiện tại]]/Chi_phí_hoạt_động[[#This Row],[Ngân sách]])-1),(Chi_phí_hoạt_động[[#This Row],[Kỳ hiện tại]]/Chi_phí_hoạt_động[[#This Row],[Ngân sách]])-1))),\"-\")","v":{"v":0,"d":"0.00%"}}]
[null,"Tổng chi phí hoạt động",null,{"$f":"SUBTOTAL(109,Chi_phí_hoạt_động[Kỳ trước])","v":0},{"$f":"SUBTOTAL(109,Chi_phí_hoạt_động[Ngân sách])","v":0},{"$f":"SUBTOTAL(109,Chi_phí_hoạt_động[Kỳ hiện tại])","v":0},{"$f":"SUBTOTAL(109,Chi_phí_hoạt_động[Kỳ hiện tại theo % doanh số])","v":{"v":0,"d":"0.00%"}},{"$f":"SUBTOTAL(109,Chi_phí_hoạt_động[% Thay đổi từ kỳ trước])","v":{"v":0,"d":"0.00%"}},{"$f":"SUBTOTAL(109,Chi_phí_hoạt_động[% Thay đổi từ ngân sách])","v":{"v":0,"d":"0.00%"}}]

{"sheet":"Thuế","index":4,"n_rows":10,"n_cols":9,"rows_kept":10,"merged":[[0,7,2,8]]}
[null,{"$f":"Tiêu_đề_sổ_làm_việc","v":"Báo cáo lợi nhuận và tổn thất"}]
[null,{"$f":"Tên_công_ty","v":"Tên công ty"},"Đã đề cập trong 000"]
[null,"Thuế",{"$f":"IFERROR(Thuế[[#Totals],[Kỳ hiện tại]],\"-\")","v":0}]
[null,"Loại","Mô tả","Kỳ trước","Ngân sách","Kỳ hiện tại","Kỳ hiện tại theo % doanh số","% Thay đổi từ kỳ trước","% Thay đổi từ ngân sách"]
[null,"Thuế","Thuế thu nhập",{"$nulls":3},{"$f":"IFERROR(IF(Doanh_thu_bán_hàng=0,\"-\",Thuế[Kỳ hiện tại]/Doanh_thu_bán_hàng),\"-\")","v":"-"},{"$f":"IFERROR(IF(Thuế[[#This Row],[Kỳ trước]]=Thuế[[#This Row],[Kỳ hiện tại]],0,IF(Thuế[[#This Row],[Kỳ hiện tại]]>Thuế[[#This Row],[Kỳ trước]],ABS((Thuế[[#This Row],[Kỳ hiện tại]]/Thuế[[#This Row],[Kỳ trước]])-1),IF(AND(Thuế[[#This Row],[Kỳ hiện tại]]<Thuế[[#This Row],[Kỳ trước]],Thuế[[#This Row],[Kỳ trước]]<0),-((Thuế[[#This Row],[Kỳ hiện tại]]/Thuế[[#This Row],[Kỳ trước]])-1),(Thuế[[#This Row],[Kỳ hiện tại]]/Thuế[[#This Row],[Kỳ trước]])-1))),\"-\")","v":{"v":0,"d":"0.00%"}},{"$f":"IFERROR(IF(Thuế[[#This Row],[Ngân sách]]=Thuế[[#This Row],[Kỳ hiện tại]],0,IF(Thuế[[#This Row],[Kỳ hiện tại]]>Thuế[[#This Row],[Ngân sách]],ABS((Thuế[[#This Row],[Kỳ hiện tại]]/Thuế[[#This Row],[Ngân sách]])-1),IF(AND(Thuế[[#This Row],[Kỳ hiện tại]]<Thuế[[#This Row],[Ngân sách]],Thuế[[#This Row],[Ngân sách]]<0),-((Thuế[[#This Row],[Kỳ hiện tại]]/Thuế[[#This Row],[Ngân sách]])-1),(Thuế[[#This Row],[Kỳ hiện tại]]/Thuế[[#This Row],[Ngân sách]])-1))),\"-\")","v":{"v":0,"d":"0.00%"}}]
[null,"Thuế","Thuế tiền lương",{"$nulls":3},{"$f":"IFERROR(IF(Doanh_thu_bán_hàng=0,\"-\",Thuế[Kỳ hiện tại]/Doanh_thu_bán_hàng),\"-\")","v":"-"},{"$f":"IFERROR(IF(Thuế[[#This Row],[Kỳ trước]]=Thuế[[#This Row],[Kỳ hiện tại]],0,IF(Thuế[[#This Row],[Kỳ hiện tại]]>Thuế[[#This Row],[Kỳ trước]],ABS((Thuế[[#This Row],[Kỳ hiện tại]]/Thuế[[#This Row],[Kỳ trước]])-1),IF(AND(Thuế[[#This Row],[Kỳ hiện tại]]<Thuế[[#This Row],[Kỳ trước]],Thuế[[#This Row],[Kỳ trước]]<0),-((Thuế[[#This Row],[Kỳ hiện tại]]/Thuế[[#This Row],[Kỳ trước]])-1),(Thuế[[#This Row],[Kỳ hiện tại]]/Thuế[[#This Row],[Kỳ trước]])-1))),\"-\")","v":{"v":0,"d":"0.00%"}},{"$f":"IFERROR(IF(Thuế[[#This Row],[Ngân sách]]=Thuế[[#This Row],[Kỳ hiện tại]],0,IF(Thuế[[#This Row],[Kỳ hiện tại]]>Thuế[[#This Row],[Ngân sách]],ABS((Thuế[[#This Row],[Kỳ hiện tại]]/Thuế[[#This Row],[Ngân sách]])-1),IF(AND(Thuế[[#This Row],[Kỳ hiện tại]]<Thuế[[#This Row],[Ngân sách]],Thuế[[#This Row],[Ngân sách]]<0),-((Thuế[[#This Row],[Kỳ hiện tại]]/Thuế[[#This Row],[Ngân sách]])-1),(Thuế[[#This Row],[Kỳ hiện tại]]/Thuế[[#This Row],[Ngân sách]])-1))),\"-\")","v":{"v":0,"d":"0.00%"}}]
[null,"Thuế","Thuế bất động sản",{"$nulls":3},{"$f":"IFERROR(IF(Doanh_thu_bán_hàng=0,\"-\",Thuế[Kỳ hiện tại]/Doanh_thu_bán_hàng),\"-\")","v":"-"},{"$f":"IFERROR(IF(Thuế[[#This Row],[Kỳ trước]]=Thuế[[#This Row],[Kỳ hiện tại]],0,IF(Thuế[[#This Row],[Kỳ hiện tại]]>Thuế[[#This Row],[Kỳ trước]],ABS((Thuế[[#This Row],[Kỳ hiện tại]]/Thuế[[#This Row],[Kỳ trước]])-1),IF(AND(Thuế[[#This Row],[Kỳ hiện tại]]<Thuế[[#This Row],[Kỳ trước]],Thuế[[#This Row],[Kỳ trước]]<0),-((Thuế[[#This Row],[Kỳ hiện tại]]/Thuế[[#This Row],[Kỳ trước]])-1),(Thuế[[#This Row],[Kỳ hiện tại]]/Thuế[[#This Row],[Kỳ trước]])-1))),\"-\")","v":{"v":0,"d":"0.00%"}},{"$f":"IFERROR(IF(Thuế[[#This Row],[Ngân sách]]=Thuế[[#This Row],[Kỳ hiện tại]],0,IF(Thuế[[#This Row],[Kỳ hiện tại]]>Thuế[[#This Row],[Ngân sách]],ABS((Thuế[[#This Row],[Kỳ hiện tại]]/Thuế[[#This Row],[Ngân sách]])-1),IF(AND(Thuế[[#This Row],[Kỳ hiện tại]]<Thuế[[#This Row],[Ngân sách]],Thuế[[#This Row],[Ngân sách]]<0),-((Thuế[[#This Row],[Kỳ hiện tại]]/Thuế[[#This Row],[Ngân sách]])-1),(Thuế[[#This Row],[Kỳ hiện tại]]/Thuế[[#This Row],[Ngân sách]])-1))),\"-\")","v":{"v":0,"d":"0.00%"}}]
[null,"Thuế","Thuế khác (ghi rõ)",{"$nulls":3},{"$f":"IFERROR(IF(Doanh_thu_bán_hàng=0,\"-\",Thuế[Kỳ hiện tại]/Doanh_thu_bán_hàng),\"-\")","v":"-"},{"$f":"IFERROR(IF(Thuế[[#This Row],[Kỳ trước]]=Thuế[[#This Row],[Kỳ hiện tại]],0,IF(Thuế[[#This Row],[Kỳ hiện tại]]>Thuế[[#This Row],[Kỳ trước]],ABS((Thuế[[#This Row],[Kỳ hiện tại]]/Thuế[[#This Row],[Kỳ trước]])-1),IF(AND(Thuế[[#This Row],[Kỳ hiện tại]]<Thuế[[#This Row],[Kỳ trước]],Thuế[[#This Row],[Kỳ trước]]<0),-((Thuế[[#This Row],[Kỳ hiện tại]]/Thuế[[#This Row],[Kỳ trước]])-1),(Thuế[[#This Row],[Kỳ hiện tại]]/Thuế[[#This Row],[Kỳ trước]])-1))),\"-\")","v":{"v":0,"d":"0.00%"}},{"$f":"IFERROR(IF(Thuế[[#This Row],[Ngân sách]]=Thuế[[#This Row],[Kỳ hiện tại]],0,IF(Thuế[[#This Row],[Kỳ hiện tại]]>Thuế[[#This Row],[Ngân sách]],ABS((Thuế[[#This Row],[Kỳ hiện tại]]/Thuế[[#This Row],[Ngân sách]])-1),IF(AND(Thuế[[#This Row],[Kỳ hiện tại]]<Thuế[[#This Row],[Ngân sách]],Thuế[[#This Row],[Ngân sách]]<0),-((Thuế[[#This Row],[Kỳ hiện tại]]/Thuế[[#This Row],[Ngân sách]])-1),(Thuế[[#This Row],[Kỳ hiện tại]]/Thuế[[#This Row],[Ngân sách]])-1))),\"-\")","v":{"v":0,"d":"0.00%"}}]
[null,"Thuế","Thuế khác (ghi rõ)",{"$nulls":3},{"$f":"IFERROR(IF(Doanh_thu_bán_hàng=0,\"-\",Thuế[Kỳ hiện tại]/Doanh_thu_bán_hàng),\"-\")","v":"-"},{"$f":"IFERROR(IF(Thuế[[#This Row],[Kỳ trước]]=Thuế[[#This Row],[Kỳ hiện tại]],0,IF(Thuế[[#This Row],[Kỳ hiện tại]]>Thuế[[#This Row],[Kỳ trước]],ABS((Thuế[[#This Row],[Kỳ hiện tại]]/Thuế[[#This Row],[Kỳ trước]])-1),IF(AND(Thuế[[#This Row],[Kỳ hiện tại]]<Thuế[[#This Row],[Kỳ trước]],Thuế[[#This Row],[Kỳ trước]]<0),-((Thuế[[#This Row],[Kỳ hiện tại]]/Thuế[[#This Row],[Kỳ trước]])-1),(Thuế[[#This Row],[Kỳ hiện tại]]/Thuế[[#This Row],[Kỳ trước]])-1))),\"-\")","v":{"v":0,"d":"0.00%"}},{"$f":"IFERROR(IF(Thuế[[#This Row],[Ngân sách]]=Thuế[[#This Row],[Kỳ hiện tại]],0,IF(Thuế[[#This Row],[Kỳ hiện tại]]>Thuế[[#This Row],[Ngân sách]],ABS((Thuế[[#This Row],[Kỳ hiện tại]]/Thuế[[#This Row],[Ngân sách]])-1),IF(AND(Thuế[[#This Row],[Kỳ hiện tại]]<Thuế[[#This Row],[Ngân sách]],Thuế[[#This Row],[Ngân sách]]<0),-((Thuế[[#This Row],[Kỳ hiện tại]]/Thuế[[#This Row],[Ngân sách]])-1),(Thuế[[#This Row],[Kỳ hiện tại]]/Thuế[[#This Row],[Ngân sách]])-1))),\"-\")","v":{"v":0,"d":"0.00%"}}]
[null,"Tổng thuế",null,{"$f":"SUBTOTAL(109,Thuế[Kỳ trước])","v":0},{"$f":"SUBTOTAL(109,Thuế[Ngân sách])","v":0},{"$f":"SUBTOTAL(109,Thuế[Kỳ hiện tại])","v":0},{"$f":"IFERROR(SUBTOTAL(109,Thuế[Kỳ hiện tại theo % doanh số]),\"-\")","v":{"v":0,"d":"0.00%"}},{"$f":"SUBTOTAL(109,Thuế[% Thay đổi từ kỳ trước])","v":{"v":0,"d":"0.00%"}},{"$f":"SUBTOTAL(109,Thuế[% Thay đổi từ ngân sách])","v":{"v":0,"d":"0.00%"}}]

{"sheet":"Danh mục","index":5,"n_rows":8,"n_cols":2,"rows_kept":8}
[null,"Danh mục"]
[null,"Doanh thu bán hàng"]
[null,"Giá vốn hàng bán"]
[null,"Thu nhập"]
[null,"Bán hàng và tiếp thị"]
[null,"Nghiên cứu và phát triển"]
[null,"Quản lý doanh nghiệp"]
[null,"Thuế"]